Workbook

Sheet 1. Cost of Service_parameters
D4: MIST Meters True-up Model
B9: Sheet 1: Parameters and Rates
G11: 2016 | H11: 2017 | I11: 2018 | J11: 2019 | K11: 2020 | L11: 2021 | M11: 2022 | N11: 2023 | O11: 2024 | P11: 2025 | Q11: 2026
B12: Cost of Capital
C13: Capital Structure
D14: Deemed Short-term Debt Capitalization | G14: 0.04 | H14: 0.04 | I14: 0.04 | J14: 0.04 | K14: 0.04 | L14: 0.04 | M14: 0.04 | N14: 0.04 | O14: 0.04 | P14: 0.04 | Q14: 0.04
D15: Deemed Long-term Debt Capitalization | G15: =60%-G14 -> 0.56 | H15: =G15-(H14-G14) -> 0.56 | I15: =H15-(I14-H14) -> 0.56 | J15: 0.56 | K15: 0.56 | L15: 0.56 | M15: 0.56 | N15: =M15-(N14-M14) -> 0.56 | O15: =N15-(O14-N14) -> 0.56 | P15: 0.56 | Q15: 0.56
D16: Deemed Equity Capitalization | G16: =100%-G15-G17-G14 -> 0.4 | H16: =100%-H15-H17-H14 -> 0.4 | I16: =100%-I15-I17-I14 -> 0.4 | J16: 0.4 | K16: 0.4 | L16: 0.4 | M16: 0.4 | N16: =100%-N15-N17-N14 -> 0.4 | O16: =100%-O15-O17-O14 -> 0.4 | P16: 0.4 | Q16: =100%-Q15-Q17-Q14 -> 0.4
D17: Preferred Shares
C18: Total | G18: =SUM(G14:G17) -> 1 | H18: =SUM(H14:H17) -> 1 | I18: =SUM(I14:I17) -> 1 | J18: 1 | K18: 1 | L18: 1 | M18: 1 | N18: 1 | O18: 1 | P18: =SUM(P14:P17) -> 1 | Q18: 1
C20: Cost of Capital Parameters
D21: Deemed Short-term Debt Rate | G21: 0.0176 | H21: 0.0176 | I21: 0.0176 | J21: 0.0176 | K21: 0.0176 | L21: 0.0176 | M21: 0.0176 | N21: 0.0176 | O21: 0.0176 | P21: 0.0176 | Q21: 0.0176
D22: Long-term Debt Rate (actual/embedded/deemed)1 | G22: 0.03882503715 | H22: 0.03882503715 | I22: 0.03882503715 | J22: 0.03882503715 | K22: 0.03882503715 | L22: 0.03882503715 | M22: 0.03882503715 | N22: 0.03882503715 | O22: 0.03882503715 | P22: 0.03882503715 | Q22: 0.03882503715
D23: Target Return on Equity (ROE) | G23: 0.0878 | H23: 0.0878 | I23: 0.0878 | J23: 0.0878 | K23: 0.0878 | L23: 0.0878 | M23: 0.0878 | N23: 0.0878 | O23: 0.0878 | P23: 0.0878 | Q23: 0.0878
D24: Return on Preferred Shares
C25: WACC | G25: =SUMPRODUCT(G14:G17,G21:G24) -> 0.0575660208 | H25: =SUMPRODUCT(H14:H17,H21:H24) -> 0.0575660208 | I25: =SUMPRODUCT(I14:I17,I21:I24) -> 0.0575660208 | J25: 0.0575660208 | K25: 0.0575660208 | L25: 0.0575660208 | M25: 0.0575660208 | N25: 0.0575660208 | O25: 0.0575660208 | P25: =SUMPRODUCT(P14:P17,P21:P24) -> 0.0575660208 | Q25: 0.0575660208
B27: Working Capital Allowance
C28: Working Capital Allowance Rate | G28: 0.075 | H28: 0.075 | I28: 0.075 | J28: 0.075 | K28: 0.075 | L28: 0.075 | M28: 0.075 | N28: 0.075 | O28: 0.075 | P28: 0.075 | Q28: 0.075
C29: (% of the sum of Cost of Power + controllable expenses)
B31: Taxes/PILs
C32: Aggregate Corporate Income Tax Rate | G32: 0.265 | H32: 0.265 | I32: 0.265 | J32: 0.265 | K32: 0.265 | L32: 0.265 | M32: 0.265 | N32: 0.265 | O32: 0.265 | P32: 0.265 | Q32: 0.265
C33: Capital Tax (until July 1st, 2010) | G33: 0 | H33: 0 | I33: 0 | J33: 0 | K33: 0 | L33: 0 | M33: 0 | N33: 0 | O33: 0 | P33: 0 | Q33: 0
B35: Depreciation Rates | E35: Account
B36: (expressed as expected useful life in years)
D38: Year | E38: 1822 | G38: 20 | H38: 20 | I38: 20 | J38: 20 | K38: 20 | L38: 20 | M38: 20 | N38: 20 | O38: 20 | P38: 20 | Q38: 20
C39: - rate (%) | D39: Rate (%) | G39: =IF(G38=0,0,1/G38) -> 0.05 | H39: =IF(H38=0,0,1/H38) -> 0.05 | I39: =IF(I38=0,0,1/I38) -> 0.05 | J39: 0.05 | K39: 0.05 | L39: 0.05 | M39: 0.05 | N39: 0.05 | O39: 0.05 | P39: =IF(P38=0,0,1/P38) -> 0.05 | Q39: 0.05
D41: Year | E41: 1845 | G41: 45 | H41: 45 | I41: 45 | J41: 45 | K41: 45 | L41: 45 | M41: 45 | N41: 45 | O41: 45 | P41: 45 | Q41: 45
C42: - rate (%) | D42: Rate (%) | G42: =IF(G41=0,0,1/G41) -> 0.02222222222 | H42: =IF(H41=0,0,1/H41) -> 0.02222222222 | I42: =IF(I41=0,0,1/I41) -> 0.02222222222 | J42: 0.02222222222 | K42: 0.02222222222 | L42: 0.02222222222 | M42: 0.02222222222 | N42: 0.02222222222 | O42: 0.02222222222 | P42: =IF(P41=0,0,1/P41) -> 0.02222222222 | Q42: 0.02222222222
D44: Year | E44: 1930 | G44: 7 | H44: 7 | I44: 7 | J44: 7 | K44: 7 | L44: 7 | M44: 7 | N44: 7 | O44: 7 | P44: 7 | Q44: 7
C45: - rate (%) | D45: Rate (%) | G45: =IF(G44=0,0,1/G44) -> 0.1428571429 | H45: =IF(H44=0,0,1/H44) -> 0.1428571429 | I45: =IF(I44=0,0,1/I44) -> 0.1428571429 | J45: 0.1428571429 | K45: 0.1428571429 | L45: 0.1428571429 | M45: 0.1428571429 | N45: 0.1428571429 | O45: 0.1428571429 | P45: =IF(P44=0,0,1/P44) -> 0.1428571429 | Q45: 0.1428571429
D47: Year | E47: 1835 | G47: 40 | H47: 40 | I47: 40 | J47: 40 | K47: 40 | L47: 40 | M47: 40 | N47: 40 | O47: 40 | P47: 40 | Q47: 40
C48: - rate (%) | D48: Rate (%) | G48: =IF(G47=0,0,1/G47) -> 0.025 | H48: =IF(H47=0,0,1/H47) -> 0.025 | I48: =IF(I47=0,0,1/I47) -> 0.025 | J48: 0.025 | K48: 0.025 | L48: 0.025 | M48: 0.025 | N48: 0.025 | O48: 0.025 | P48: =IF(P47=0,0,1/P47) -> 0.025 | Q48: 0.025
D50: Year | E50: 1921 | G50: 4 | H50: 4 | I50: 4 | J50: 4 | K50: 4 | L50: 4 | M50: 4 | N50: 4 | O50: 4 | P50: 4 | Q50: 4
C51: - rate (%) | D51: Rate (%) | G51: =IF(G50=0,0,1/G50) -> 0.25 | H51: =IF(H50=0,0,1/H50) -> 0.25 | I51: =IF(I50=0,0,1/I50) -> 0.25 | J51: 0.25 | K51: 0.25 | L51: 0.25 | M51: 0.25 | N51: 0.25 | O51: 0.25 | P51: =IF(P50=0,0,1/P50) -> 0.25 | Q51: 0.25
D53: Year | E53: 1935 | G53: 10 | H53: 10 | I53: 10 | J53: 10 | K53: 10 | L53: 10 | M53: 10 | N53: 10 | O53: 10 | P53: 10 | Q53: 10
C54: - rate (%) | D54: Rate (%) | G54: =IF(G53=0,0,1/G53) -> 0.1 | H54: =IF(H53=0,0,1/H53) -> 0.1 | I54: =IF(I53=0,0,1/I53) -> 0.1 | J54: 0.1 | K54: 0.1 | L54: 0.1 | M54: 0.1 | N54: 0.1 | O54: 0.1 | P54: =IF(P53=0,0,1/P53) -> 0.1 | Q54: 0.1
D56: Year | E56: 1926 | G56: 3 | H56: 3 | I56: 3 | J56: 3 | K56: 3 | L56: 3 | M56: 3 | N56: 3 | O56: 3 | P56: 3 | Q56: 3
C57: - rate (%) | D57: Rate (%) | G57: =IF(G56=0,0,1/G56) -> 0.3333333333 | H57: =IF(H56=0,0,1/H56) -> 0.3333333333 | I57: =IF(I56=0,0,1/I56) -> 0.3333333333 | J57: 0.3333333333 | K57: 0.3333333333 | L57: 0.3333333333 | M57: 0.3333333333 | N57: 0.3333333333 | O57: 0.3333333333 | P57: =IF(P56=0,0,1/P56) -> 0.3333333333 | Q57: 0.3333333333
D59: Year | E59: 1860 | G59: 15 | H59: 15 | I59: 15 | J59: 15 | K59: 15 | L59: 15 | M59: 15 | N59: 15 | O59: 15 | P59: 15 | Q59: 15
C60: - rate (%) | D60: Rate (%) | G60: =IF(G59=0,0,1/G59) -> 0.06666666667 | H60: =IF(H59=0,0,1/H59) -> 0.06666666667 | I60: =IF(I59=0,0,1/I59) -> 0.06666666667 | J60: 0.06666666667 | K60: 0.06666666667 | L60: 0.06666666667 | M60: 0.06666666667 | N60: 0.06666666667 | O60: 0.06666666667 | P60: =IF(P59=0,0,1/P59) -> 0.06666666667 | Q60: 0.06666666667
D62: Year | E62: 1924 | G62: 6 | H62: 6 | I62: 6 | J62: 6 | K62: 6 | L62: 6 | M62: 6 | N62: 6 | O62: 6 | P62: 6 | Q62: 6
C63: - rate (%) | D63: Rate (%) | G63: =IF(G62=0,0,1/G62) -> 0.1666666667 | H63: =IF(H62=0,0,1/H62) -> 0.1666666667 | I63: =IF(I62=0,0,1/I62) -> 0.1666666667 | J63: 0.1666666667 | K63: 0.1666666667 | L63: 0.1666666667 | M63: 0.1666666667 | N63: 0.1666666667 | O63: 0.1666666667 | P63: =IF(P62=0,0,1/P62) -> 0.1666666667 | Q63: 0.1666666667
D65: Year | E65: 1850 | G65: 30 | H65: 30 | I65: 30 | J65: 30 | K65: 30 | L65: 30 | M65: 30 | N65: 30 | O65: 30 | P65: 30 | Q65: 30
C66: - rate (%) | D66: Rate (%) | G66: =IF(G65=0,0,1/G65) -> 0.03333333333 | H66: =IF(H65=0,0,1/H65) -> 0.03333333333 | I66: =IF(I65=0,0,1/I65) -> 0.03333333333 | J66: 0.03333333333 | K66: 0.03333333333 | L66: 0.03333333333 | M66: 0.03333333333 | N66: 0.03333333333 | O66: 0.03333333333 | P66: =IF(P65=0,0,1/P65) -> 0.03333333333 | Q66: 0.03333333333
D68: Year | E68: 1982 | G68: 10 | H68: 10 | I68: 10 | J68: 10 | K68: 10 | L68: 10 | M68: 10 | N68: 10 | O68: 10 | P68: 10 | Q68: 10
C69: - rate (%) | D69: Rate (%) | G69: =IF(G68=0,0,1/G68) -> 0.1 | H69: =IF(H68=0,0,1/H68) -> 0.1 | I69: =IF(I68=0,0,1/I68) -> 0.1 | J69: 0.1 | K69: 0.1 | L69: 0.1 | M69: 0.1 | N69: 0.1 | O69: 0.1 | P69: =IF(P68=0,0,1/P68) -> 0.1 | Q69: 0.1
D71: Year | E71: 1955 | G71: 6 | H71: 6 | I71: 6 | J71: 6 | K71: 6 | L71: 6 | M71: 6 | N71: 6 | O71: 6 | P71: 6 | Q71: 6
C72: - rate (%) | D72: Rate (%) | G72: =IF(G71=0,0,1/G71) -> 0.1666666667 | H72: =IF(H71=0,0,1/H71) -> 0.1666666667 | I72: =IF(I71=0,0,1/I71) -> 0.1666666667 | J72: 0.1666666667 | K72: 0.1666666667 | L72: 0.1666666667 | M72: 0.1666666667 | N72: 0.1666666667 | O72: 0.1666666667 | P72: =IF(P71=0,0,1/P71) -> 0.1666666667 | Q72: 0.1666666667
B74: CCA Rates
D75: CCA Class | E75: 1822 | G75: 47 | H75: 47 | I75: 47 | J75: 47 | K75: 47 | L75: 47 | M75: 47 | N75: 47 | O75: 47 | P75: 47 | Q75: 47
D76: CCA Rate | G76: 0.08 | H76: 0.08 | I76: 0.08 | J76: 0.08 | K76: 0.08 | L76: 0.08 | M76: 0.08 | N76: 0.08 | O76: 0.08 | P76: 0.08 | Q76: 0.08
D78: CCA Class | E78: 1845 | G78: 47 | H78: 47 | I78: 47 | J78: 47 | K78: 47 | L78: 47 | M78: 47 | N78: 47 | O78: 47 | P78: 47 | Q78: 47
D79: CCA Rate | G79: 0.08 | H79: 0.08 | I79: 0.08 | J79: 0.08 | K79: 0.08 | L79: 0.08 | M79: 0.08 | N79: 0.08 | O79: 0.08 | P79: 0.08 | Q79: 0.08
D81: CCA Class | E81: 1930 | G81: 10 | H81: 10 | I81: 10 | J81: 10 | K81: 10 | L81: 10 | M81: 10 | N81: 10 | O81: 10 | P81: 10 | Q81: 10
D82: CCA Rate | G82: 0.3 | H82: 0.3 | I82: 0.3 | J82: 0.3 | K82: 0.3 | L82: 0.3 | M82: 0.3 | N82: 0.3 | O82: 0.3 | P82: 0.3 | Q82: 0.3
D84: CCA Class | E84: 1835 | G84: 47 | H84: 47 | I84: 47 | J84: 47 | K84: 47 | L84: 47 | M84: 47 | N84: 47 | O84: 47 | P84: 47 | Q84: 47
D85: CCA Rate | G85: 0.08 | H85: 0.08 | I85: 0.08 | J85: 0.08 | K85: 0.08 | L85: 0.08 | M85: 0.08 | N85: 0.08 | O85: 0.08 | P85: 0.08 | Q85: 0.08
D87: CCA Class | E87: 1921 | G87: 50 | H87: 50 | I87: 50 | J87: 50 | K87: 50 | L87: 50 | M87: 50 | N87: 50 | O87: 50 | P87: 50 | Q87: 50
D88: CCA Rate | G88: 0.55 | H88: 0.55 | I88: 0.55 | J88: 0.55 | K88: 0.55 | L88: 0.55 | M88: 0.55 | N88: 0.55 | O88: 0.55 | P88: 0.55 | Q88: 0.55
D90: CCA Class | E90: 1935 | G90: 8 | H90: 8 | I90: 8 | J90: 8 | K90: 8 | L90: 8 | M90: 8 | N90: 8 | O90: 8 | P90: 8 | Q90: 8
D91: CCA Rate | G91: 0.2 | H91: 0.2 | I91: 0.2 | J91: 0.2 | K91: 0.2 | L91: 0.2 | M91: 0.2 | N91: 0.2 | O91: 0.2 | P91: 0.2 | Q91: 0.2
D93: CCA Class | E93: 1926 | G93: 12 | H93: 12 | I93: 12 | J93: 12 | K93: 12 | L93: 12 | M93: 12 | N93: 12 | O93: 12 | P93: 12 | Q93: 12
D94: CCA Rate | G94: 1 | H94: 1 | I94: 1 | J94: 1 | K94: 1 | L94: 1 | M94: 1 | N94: 1 | O94: 1 | P94: 1 | Q94: 1
D96: CCA Class | E96: 1860 | G96: 47 | H96: 47 | I96: 47 | J96: 47 | K96: 47 | L96: 47 | M96: 47 | N96: 47 | O96: 47 | P96: 47 | Q96: 47
D97: CCA Rate | G97: 0.08 | H97: 0.08 | I97: 0.08 | J97: 0.08 | K97: 0.08 | L97: 0.08 | M97: 0.08 | N97: 0.08 | O97: 0.08 | P97: 0.08 | Q97: 0.08
D99: CCA Class | E99: 1924 | G99: 50 | H99: 50 | I99: 50 | J99: 50 | K99: 50 | L99: 50 | M99: 50 | N99: 50 | O99: 50 | P99: 50 | Q99: 50
D100: CCA Rate | G100: 0.55 | H100: 0.55 | I100: 0.55 | J100: 0.55 | K100: 0.55 | L100: 0.55 | M100: 0.55 | N100: 0.55 | O100: 0.55 | P100: 0.55 | Q100: 0.55
D102: CCA Class | E102: 1850 | G102: 47 | H102: 47 | I102: 47 | J102: 47 | K102: 47 | L102: 47 | M102: 47 | N102: 47 | O102: 47 | P102: 47 | Q102: 47
D103: CCA Rate | G103: 0.08 | H103: 0.08 | I103: 0.08 | J103: 0.08 | K103: 0.08 | L103: 0.08 | M103: 0.08 | N103: 0.08 | O103: 0.08 | P103: 0.08 | Q103: 0.08
D105: CCA Class | E105: 1982 | G105: 8 | H105: 8 | I105: 8 | J105: 8 | K105: 8 | L105: 8 | M105: 8 | N105: 8 | O105: 8 | P105: 8 | Q105: 8
D106: CCA Rate | G106: 0.2 | H106: 0.2 | I106: 0.2 | J106: 0.2 | K106: 0.2 | L106: 0.2 | M106: 0.2 | N106: 0.2 | O106: 0.2 | P106: 0.2 | Q106: 0.2
D108: CCA Class | E108: 1955 | G108: 8 | H108: 8 | I108: 8 | J108: 8 | K108: 8 | L108: 8 | M108: 8 | N108: 8 | O108: 8 | P108: 8 | Q108: 8
D109: CCA Rate | G109: 0.2 | H109: 0.2 | I109: 0.2 | J109: 0.2 | K109: 0.2 | L109: 0.2 | M109: 0.2 | N109: 0.2 | O109: 0.2 | P109: 0.2 | Q109: 0.2
B112: Assumptions
B113: 1 | C113: Fiscal calendar year (January 1 to December 31) used.
B114: 3 | C114: Amortization is done on a striaght line basis and no "half-year" rule applied.

Sheet 2. MIST Meters Assets_Rate Base
D4: MIST Meters True-up Model
B9: Sheet 2: 1557 - Net Book Value
E10: 2016 | F10: 2017 | G10: 2018 | H10: 2019 | I10: 2020 | J10: 2021 | K10: 2022 | L10: 2023 | M10: 2024 | N10: 2025 | O10: 2026
B11: Net Fixed Assets - 1860
C13: Gross Book Value
D14: Opening Balance | E14: 0 | F14: =E17 -> 1985917.65 | G14: =F17 -> 2026921.02 | H14: 3693737.07 | I14: 3705805.15 | J14: 5954476.56 | K14: 7936900.74 | L14: 9013159.62 | M14: 9037747.74 | N14: 9037747.74 | O14: 9037747.74
D15: Capital Additions during year | E15: 1985917.65 | F15: 41003.37 | G15: 1666816.05 | H15: 12068.08 | I15: 2248671.41 | J15: 1982424.18 | K15: 1076258.88 | L15: 24588.12 | M15: 0 | N15: 0 | O15: 0
D16: Retirements/Removals (if applicable) | F16: 0 | H16: 0 | J16: 0 | K16: 0 | L16: 0 | M16: 0 | N16: 0 | O16: 0
D17: Closing Balance | E17: =E14+E15-E16 -> 1985917.65 | F17: =F14+F15-F16 -> 2026921.02 | G17: =G14+G15-G16 -> 3693737.07 | H17: 3705805.15 | I17: 5954476.56 | J17: 7936900.74 | K17: 9013159.62 | L17: 9037747.74 | M17: 9037747.74 | N17: =N14+N15-N16 -> 9037747.74 | O17: 9037747.74
C19: Accumulated Depreciation
D20: Opening Balance | E20: 0 | F20: =E23 -> 0 | G20: =F23 -> -170040.85 | H20: -332691.76 | I20: -443699.62 | J20: -556890.05 | K20: -757495.97 | L20: -1082340.5 | M20: =L23 -> -1434739.51 | N20: =M23 -> -1787692.17 | O20: -2140644.83
D21: Amortization expense during year | E21: 0 | F21: -170040.85 | G21: -162650.91 | H21: -111007.86 | I21: -113190.43 | J21: -200605.92 | K21: -324844.53 | L21: -352399.01 | M21: -352952.66 | N21: -352952.66 | O21: -352952.66
D22: Retirements/Removals (if applicable)
D23: Closing Balance | E23: =E20+E21-E22 -> 0 | F23: =F20+F21-F22 -> -170040.85 | G23: =G20+G21-G22 -> -332691.76 | H23: =H20+H21-H22 -> -443699.62 | I23: =I20+I21-I22 -> -556890.05 | J23: =J20+J21-J22 -> -757495.97 | K23: =K20+K21-K22 -> -1082340.5 | L23: =L20+L21-L22 -> -1434739.51 | M23: =M20+M21-M22 -> -1787692.17 | N23: -2140644.83 | O23: =O20+O21-O22 -> -2493597.49
C25: Net Book Value
D26: Opening Balance | E26: =E14+E20 -> 0 | F26: =E27 -> 1985917.65 | G26: =F27 -> 1856880.17 | H26: 3361045.31 | I26: 3262105.53 | J26: 5397586.51 | K26: 7179404.77 | L26: 7930819.12 | M26: 7603008.23 | N26: 7250055.57 | O26: 6897102.91
D27: Closing Balance | E27: =E17+E23 -> 1985917.65 | F27: =F17+F23 -> 1856880.17 | G27: =G17+G23 -> 3361045.31 | H27: 3262105.53 | I27: 5397586.51 | J27: 7179404.77 | K27: 7930819.12 | L27: 7603008.23 | M27: 7250055.57 | N27: =N17+N23 -> 6897102.91 | O27: 6544150.25
D28: Net Fixed Assets (NFA) | E28: =SUM(E26:E27)/2 -> 992958.825 | F28: =AVERAGE(F26:F27) -> 1921398.91 | G28: =AVERAGE(G26:G27) -> 2608962.74 | H28: 3311575.42 | I28: 4329846.02 | J28: 6288495.64 | K28: 7555111.945 | L28: 7766913.675 | M28: 7426531.9 | N28: =AVERAGE(N26:N27) -> 7073579.24 | O28: =AVERAGE(O26:O27) -> 6720626.58
B30: Net Fixed Assets - 1845
C32: Gross Book Value
D33: Opening Balance | F33: =E36 -> 0 | G33: =F36 -> 0 | H33: 0 | I33: 0 | J33: 0 | K33: 0 | L33: 0 | M33: 0 | N33: 0 | O33: 0
D34: Capital Additions during year (from ICM Costs)
D35: Retirements/Removals (if applicable)
D36: Closing Balance | E36: =E33+E34-E35 -> 0 | F36: =F33+F34-F35 -> 0 | G36: =G33+G34-G35 -> 0 | H36: 0 | I36: 0 | J36: 0 | K36: 0 | L36: 0 | M36: 0 | N36: =N33+N34-N35 -> 0 | O36: 0
C38: Accumulated Depreciation
D39: Opening Balance | F39: =E42 -> 0 | G39: =F42 -> 0 | H39: 0 | I39: 0 | J39: 0 | K39: 0 | L39: 0 | M39: 0 | N39: 0 | O39: 0
D40: Amortization expense during year | E40: =-E34/'1. Cost of Service_parameters'!G41/2 -> 0 | F40: =-F33/'1. Cost of Service_parameters'!G41-'2. MIST Meters Assets_Rate Base'!F34/'1. Cost of Service_parameters'!G41/2 -> 0 | G40: =-G33/'1. Cost of Service_parameters'!H41-'2. MIST Meters Assets_Rate Base'!G34/'1. Cost of Service_parameters'!H41/2 -> 0 | H40: =-H33/'1. Cost of Service_parameters'!I41-'2. MIST Meters Assets_Rate Base'!H34/'1. Cost of Service_parameters'!I41/2 -> 0 | I40: =-I33/'1. Cost of Service_parameters'!J41-'2. MIST Meters Assets_Rate Base'!I34/'1. Cost of Service_parameters'!J41/2 -> 0 | J40: =-J33/'1. Cost of Service_parameters'!K41-'2. MIST Meters Assets_Rate Base'!J34/'1. Cost of Service_parameters'!K41/2 -> 0 | K40: =-K33/'1. Cost of Service_parameters'!L41-'2. MIST Meters Assets_Rate Base'!K34/'1. Cost of Service_parameters'!L41/2 -> 0 | L40: =-L33/'1. Cost of Service_parameters'!M41-'2. MIST Meters Assets_Rate Base'!L34/'1. Cost of Service_parameters'!M41/2 -> 0 | M40: =-M33/'1. Cost of Service_parameters'!N41-'2. MIST Meters Assets_Rate Base'!M34/'1. Cost of Service_parameters'!N41/2 -> 0 | N40: =-N33/'1. Cost of Service_parameters'!O41-'2. MIST Meters Assets_Rate Base'!N34/'1. Cost of Service_parameters'!O41/2 -> 0 | O40: =-O33/'1. Cost of Service_parameters'!P41-'2. MIST Meters Assets_Rate Base'!O34/'1. Cost of Service_parameters'!P41/2 -> 0
D41: Retirements/Removals (if applicable)
D42: Closing Balance | E42: =E39+E40-E41 -> 0 | F42: =F39+F40-F41 -> 0 | G42: =G39+G40-G41 -> 0 | H42: 0 | I42: 0 | J42: 0 | K42: 0 | L42: 0 | M42: 0 | N42: =N39+N40-N41 -> 0 | O42: 0
C44: Net Book Value
D45: Opening Balance | E45: =E33+E39 -> 0 | F45: =E46 -> 0 | G45: =F46 -> 0 | H45: 0 | I45: 0 | J45: 0 | K45: 0 | L45: 0 | M45: 0 | N45: 0 | O45: 0
D46: Closing Balance | E46: =E36+E42 -> 0 | F46: =F36+F42 -> 0 | G46: =G36+G42 -> 0 | H46: 0 | I46: 0 | J46: 0 | K46: 0 | L46: 0 | M46: 0 | N46: =N36+N42 -> 0 | O46: 0
D47: Net Fixed Assets (NFA) | E47: =AVERAGE(E45:E46) -> 0 | F47: =AVERAGE(F45:F46) -> 0 | G47: =AVERAGE(G45:G46) -> 0 | H47: 0 | I47: 0 | J47: 0 | K47: 0 | L47: 0 | M47: 0 | N47: =AVERAGE(N45:N46) -> 0 | O47: 0
B49: Net Fixed Assets - 1930
C51: Gross Book Value
D52: Opening Balance | F52: =E55 -> 0 | G52: =F55 -> 0 | H52: 0 | I52: 0 | J52: 0 | K52: 0 | L52: 0 | M52: 0 | N52: 0 | O52: 0
D53: Capital Additions during year (from ICM Costs) | F53: 0
D54: Retirements/Removals (if applicable)
D55: Closing Balance | E55: =E52+E53-E54 -> 0 | F55: =F52+F53-F54 -> 0 | G55: =G52+G53-G54 -> 0 | H55: 0 | I55: 0 | J55: 0 | K55: 0 | L55: 0 | M55: 0 | N55: =N52+N53-N54 -> 0 | O55: 0
C57: Accumulated Depreciation
D58: Opening Balance | F58: =E61 -> 0 | G58: =F61 -> 0 | H58: 0 | I58: 0 | J58: 0 | K58: 0 | L58: 0 | M58: 0 | N58: 0 | O58: 0
D59: Amortization expense during year | E59: =-E53/'1. Cost of Service_parameters'!G44/2 -> 0 | F59: =-F52/'1. Cost of Service_parameters'!G44 -> 0 | G59: =-G52/'1. Cost of Service_parameters'!H44 -> 0 | H59: =-H52/'1. Cost of Service_parameters'!I44 -> 0 | I59: =-I52/'1. Cost of Service_parameters'!J44 -> 0 | J59: =-J52/'1. Cost of Service_parameters'!K44 -> 0 | K59: =-K52/'1. Cost of Service_parameters'!L44 -> 0 | L59: =-L52/'1. Cost of Service_parameters'!M44 -> 0 | M59: =-M52/'1. Cost of Service_parameters'!N44 -> 0 | N59: =-N52/'1. Cost of Service_parameters'!O44 -> 0 | O59: =-O52/'1. Cost of Service_parameters'!P44 -> 0
D60: Retirements/Removals (if applicable)
D61: Closing Balance | E61: =E58+E59-E60 -> 0 | F61: =F58+F59-F60 -> 0 | G61: =G58+G59-G60 -> 0 | H61: 0 | I61: 0 | J61: 0 | K61: 0 | L61: 0 | M61: 0 | N61: =N58+N59-N60 -> 0 | O61: 0
C63: Net Book Value
D64: Opening Balance | E64: =E52+E58 -> 0 | F64: =E65 -> 0 | G64: =F65 -> 0 | H64: 0 | I64: 0 | J64: 0 | K64: 0 | L64: 0 | M64: 0 | N64: 0 | O64: 0
D65: Closing Balance | E65: =E55+E61 -> 0 | F65: =F55+F61 -> 0 | G65: =G55+G61 -> 0 | H65: 0 | I65: 0 | J65: 0 | K65: 0 | L65: 0 | M65: 0 | N65: =N55+N61 -> 0 | O65: 0
D66: Net Fixed Assets (NFA) | E66: =AVERAGE(E64:E65) -> 0 | F66: =AVERAGE(F64:F65) -> 0 | G66: =AVERAGE(G64:G65) -> 0 | H66: 0 | I66: 0 | J66: 0 | K66: 0 | L66: 0 | M66: 0 | N66: =AVERAGE(N64:N65) -> 0 | O66: 0
B68: Net Fixed Assets - 1835
C70: Gross Book Value
D71: Opening Balance | F71: =E74 -> 0 | G71: =F74 -> 0 | H71: 0 | I71: 0 | J71: 0 | K71: 0 | L71: 0 | M71: 0 | N71: 0 | O71: 0
D72: Capital Additions during year (from ICM Costs)
D73: Retirements/Removals (if applicable)
D74: Closing Balance | E74: =E71+E72-E73 -> 0 | F74: =F71+F72-F73 -> 0 | G74: =G71+G72-G73 -> 0 | H74: 0 | I74: 0 | J74: 0 | K74: 0 | L74: 0 | M74: 0 | N74: =N71+N72-N73 -> 0 | O74: 0
C76: Accumulated Depreciation
D77: Opening Balance | F77: =E80 -> 0 | G77: =F80 -> 0 | H77: 0 | I77: 0 | J77: 0 | K77: 0 | L77: 0 | M77: 0 | N77: 0 | O77: 0
D78: Amortization expense during year | E78: =-E72/'1. Cost of Service_parameters'!G47/2 -> 0 | F78: =-F71/'1. Cost of Service_parameters'!G47-'2. MIST Meters Assets_Rate Base'!F72/'1. Cost of Service_parameters'!G47/2 -> 0 | G78: =-G71/'1. Cost of Service_parameters'!H47-'2. MIST Meters Assets_Rate Base'!G72/'1. Cost of Service_parameters'!H47/2 -> 0 | H78: =-H71/'1. Cost of Service_parameters'!I47-'2. MIST Meters Assets_Rate Base'!H72/'1. Cost of Service_parameters'!I47/2 -> 0 | I78: =-I71/'1. Cost of Service_parameters'!J47-'2. MIST Meters Assets_Rate Base'!I72/'1. Cost of Service_parameters'!J47/2 -> 0 | J78: =-J71/'1. Cost of Service_parameters'!K47-'2. MIST Meters Assets_Rate Base'!J72/'1. Cost of Service_parameters'!K47/2 -> 0 | K78: =-K71/'1. Cost of Service_parameters'!L47-'2. MIST Meters Assets_Rate Base'!K72/'1. Cost of Service_parameters'!L47/2 -> 0 | L78: =-L71/'1. Cost of Service_parameters'!M47-'2. MIST Meters Assets_Rate Base'!L72/'1. Cost of Service_parameters'!M47/2 -> 0 | M78: =-M71/'1. Cost of Service_parameters'!N47-'2. MIST Meters Assets_Rate Base'!M72/'1. Cost of Service_parameters'!N47/2 -> 0 | N78: =-N71/'1. Cost of Service_parameters'!O47-'2. MIST Meters Assets_Rate Base'!N72/'1. Cost of Service_parameters'!O47/2 -> 0 | O78: =-O71/'1. Cost of Service_parameters'!P47-'2. MIST Meters Assets_Rate Base'!O72/'1. Cost of Service_parameters'!P47/2 -> 0
D79: Retirements/Removals (if applicable)
D80: Closing Balance | E80: =E77+E78-E79 -> 0 | F80: =F77+F78-F79 -> 0 | G80: =G77+G78-G79 -> 0 | H80: 0 | I80: 0 | J80: 0 | K80: 0 | L80: 0 | M80: 0 | N80: =N77+N78-N79 -> 0 | O80: 0
C82: Net Book Value
D83: Opening Balance | E83: =E71+E77 -> 0 | F83: =E84 -> 0 | G83: =F84 -> 0 | H83: 0 | I83: 0 | J83: 0 | K83: 0 | L83: 0 | M83: 0 | N83: 0 | O83: 0
D84: Closing Balance | E84: =E74+E80 -> 0 | F84: =F74+F80 -> 0 | G84: =G74+G80 -> 0 | H84: 0 | I84: 0 | J84: 0 | K84: 0 | L84: 0 | M84: 0 | N84: =N74+N80 -> 0 | O84: 0
D85: Net Fixed Assets (NFA) | E85: =AVERAGE(E83:E84) -> 0 | F85: =AVERAGE(F83:F84) -> 0 | G85: =AVERAGE(G83:G84) -> 0 | H85: 0 | I85: 0 | J85: 0 | K85: 0 | L85: 0 | M85: 0 | N85: =AVERAGE(N83:N84) -> 0 | O85: 0
B87: Net Fixed Assets - 1921
C89: Gross Book Value
D90: Opening Balance | F90: =E93 -> 0 | G90: =F93 -> 0 | H90: 0 | I90: 0 | J90: 0 | K90: 0 | L90: 0 | M90: 0 | N90: 0 | O90: 0
D91: Capital Additions during year (from ICM Costs) | F91: 0
D92: Retirements/Removals (if applicable)
D93: Closing Balance | E93: =E90+E91-E92 -> 0 | F93: =F90+F91-F92 -> 0 | G93: =G90+G91-G92 -> 0 | H93: 0 | I93: 0 | J93: 0 | K93: 0 | L93: 0 | M93: 0 | N93: =N90+N91-N92 -> 0 | O93: 0
C95: Accumulated Depreciation
D96: Opening Balance | F96: =E99 -> 0 | G96: =F99 -> 0 | H96: 0 | I96: 0 | J96: 0 | K96: 0 | L96: 0 | M96: 0 | N96: 0 | O96: 0
D97: Amortization expense during year | E97: =-E91/'1. Cost of Service_parameters'!G50/2 -> 0 | F97: =-F90/'1. Cost of Service_parameters'!G50 -> 0 | G97: =-G90/'1. Cost of Service_parameters'!H50 -> 0 | H97: =-H90/'1. Cost of Service_parameters'!I50 -> 0 | I97: =-I90/'1. Cost of Service_parameters'!J50 -> 0 | J97: =-J90/'1. Cost of Service_parameters'!K50 -> 0 | K97: =-K90/'1. Cost of Service_parameters'!L50 -> 0 | L97: =-L90/'1. Cost of Service_parameters'!M50 -> 0 | M97: =-M90/'1. Cost of Service_parameters'!N50 -> 0 | N97: =-N90/'1. Cost of Service_parameters'!O50 -> 0 | O97: =-O90/'1. Cost of Service_parameters'!P50 -> 0
D98: Retirements/Removals (if applicable)
D99: Closing Balance | E99: =E96+E97-E98 -> 0 | F99: =F96+F97-F98 -> 0 | G99: =G96+G97-G98 -> 0 | H99: 0 | I99: 0 | J99: 0 | K99: 0 | L99: 0 | M99: 0 | N99: =N96+N97-N98 -> 0 | O99: 0
C101: Net Book Value
D102: Opening Balance | E102: =E90+E96 -> 0 | F102: =E103 -> 0 | G102: =F103 -> 0 | H102: 0 | I102: 0 | J102: 0 | K102: 0 | L102: 0 | M102: 0 | N102: 0 | O102: 0
D103: Closing Balance | E103: =E93+E99 -> 0 | F103: =F93+F99 -> 0 | G103: =G93+G99 -> 0 | H103: 0 | I103: 0 | J103: 0 | K103: 0 | L103: 0 | M103: 0 | N103: =N93+N99 -> 0 | O103: 0
D104: Net Fixed Assets (NFA) | E104: =AVERAGE(E102:E103) -> 0 | F104: =AVERAGE(F102:F103) -> 0 | G104: =AVERAGE(G102:G103) -> 0 | H104: 0 | I104: 0 | J104: 0 | K104: 0 | L104: 0 | M104: 0 | N104: =AVERAGE(N102:N103) -> 0 | O104: 0
B106: Net Fixed Assets - 1935
C108: Gross Book Value
D109: Opening Balance | F109: =E112 -> 0 | G109: =F112 -> 0 | H109: 0 | I109: 0 | J109: 0 | K109: 0 | L109: 0 | M109: 0 | N109: 0 | O109: 0
D110: Capital Additions during year (from ICM Costs)
D111: Retirements/Removals (if applicable)
D112: Closing Balance | E112: =E109+E110-E111 -> 0 | F112: =F109+F110-F111 -> 0 | G112: =G109+G110-G111 -> 0 | H112: 0 | I112: 0 | J112: 0 | K112: 0 | L112: 0 | M112: 0 | N112: =N109+N110-N111 -> 0 | O112: 0
C114: Accumulated Depreciation
D115: Opening Balance | F115: =E118 -> 0 | G115: =F118 -> 0 | H115: 0 | I115: 0 | J115: 0 | K115: 0 | L115: 0 | M115: 0 | N115: 0 | O115: 0
D116: Amortization expense during year | E116: =-E110/'1. Cost of Service_parameters'!G53/2 -> 0 | F116: =-F109/'1. Cost of Service_parameters'!G53-'2. MIST Meters Assets_Rate Base'!F110/'1. Cost of Service_parameters'!G53/2 -> 0 | G116: =-G109/'1. Cost of Service_parameters'!H53-'2. MIST Meters Assets_Rate Base'!G110/'1. Cost of Service_parameters'!H53/2 -> 0 | H116: =-H109/'1. Cost of Service_parameters'!I53-'2. MIST Meters Assets_Rate Base'!H110/'1. Cost of Service_parameters'!I53/2 -> 0 | I116: =-I109/'1. Cost of Service_parameters'!J53-'2. MIST Meters Assets_Rate Base'!I110/'1. Cost of Service_parameters'!J53/2 -> 0 | J116: =-J109/'1. Cost of Service_parameters'!K53-'2. MIST Meters Assets_Rate Base'!J110/'1. Cost of Service_parameters'!K53/2 -> 0 | K116: =-K109/'1. Cost of Service_parameters'!L53-'2. MIST Meters Assets_Rate Base'!K110/'1. Cost of Service_parameters'!L53/2 -> 0 | L116: =-L109/'1. Cost of Service_parameters'!M53-'2. MIST Meters Assets_Rate Base'!L110/'1. Cost of Service_parameters'!M53/2 -> 0 | M116: =-M109/'1. Cost of Service_parameters'!N53-'2. MIST Meters Assets_Rate Base'!M110/'1. Cost of Service_parameters'!N53/2 -> 0 | N116: =-N109/'1. Cost of Service_parameters'!O53-'2. MIST Meters Assets_Rate Base'!N110/'1. Cost of Service_parameters'!O53/2 -> 0 | O116: =-O109/'1. Cost of Service_parameters'!P53-'2. MIST Meters Assets_Rate Base'!O110/'1. Cost of Service_parameters'!P53/2 -> 0
D117: Retirements/Removals (if applicable)
D118: Closing Balance | E118: =E115+E116-E117 -> 0 | F118: =F115+F116-F117 -> 0 | G118: =G115+G116-G117 -> 0 | H118: 0 | I118: 0 | J118: 0 | K118: 0 | L118: 0 | M118: 0 | N118: =N115+N116-N117 -> 0 | O118: 0
C120: Net Book Value
D121: Opening Balance | E121: =E109+E115 -> 0 | F121: =E122 -> 0 | G121: =F122 -> 0 | H121: 0 | I121: 0 | J121: 0 | K121: 0 | L121: 0 | M121: 0 | N121: 0 | O121: 0
D122: Closing Balance | E122: =E112+E118 -> 0 | F122: =F112+F118 -> 0 | G122: =G112+G118 -> 0 | H122: 0 | I122: 0 | J122: 0 | K122: 0 | L122: 0 | M122: 0 | N122: =N112+N118 -> 0 | O122: 0
D123: Net Fixed Assets (NFA) | E123: =AVERAGE(E121:E122) -> 0 | F123: =AVERAGE(F121:F122) -> 0 | G123: =AVERAGE(G121:G122) -> 0 | H123: 0 | I123: 0 | J123: 0 | K123: 0 | L123: 0 | M123: 0 | N123: =AVERAGE(N121:N122) -> 0 | O123: 0
B125: Net Fixed Assets - 1926
C127: Gross Book Value
D128: Opening Balance | F128: =E131 -> 0 | G128: =F131 -> 0 | H128: 0 | I128: 0 | J128: 0 | K128: 0 | L128: 0 | M128: 0 | N128: 0 | O128: 0
D129: Capital Additions during year (from ICM Costs) | F129: 0
D130: Retirements/Removals (if applicable)
D131: Closing Balance | E131: =E128+E129-E130 -> 0 | F131: =F128+F129-F130 -> 0 | G131: =G128+G129-G130 -> 0 | H131: 0 | I131: 0 | J131: 0 | K131: 0 | L131: 0 | M131: 0 | N131: =N128+N129-N130 -> 0 | O131: 0
C133: Accumulated Depreciation
D134: Opening Balance | F134: =E137 -> 0 | G134: =F137 -> 0 | H134: 0 | I134: 0 | J134: 0 | K134: 0 | L134: 0 | M134: 0 | N134: 0 | O134: 0
D135: Amortization expense during year | E135: =-E129/'1. Cost of Service_parameters'!G56/2 -> 0 | F135: =-F128/'1. Cost of Service_parameters'!G56 -> 0 | G135: =-G128/'1. Cost of Service_parameters'!H56 -> 0 | H135: =-H128/'1. Cost of Service_parameters'!I56 -> 0 | I135: =-I128/'1. Cost of Service_parameters'!J56 -> 0 | J135: =-J128/'1. Cost of Service_parameters'!K56 -> 0 | K135: =-K128/'1. Cost of Service_parameters'!L56 -> 0 | L135: =-L128/'1. Cost of Service_parameters'!M56 -> 0 | M135: =-M128/'1. Cost of Service_parameters'!N56 -> 0 | N135: =-N128/'1. Cost of Service_parameters'!O56 -> 0 | O135: =-O128/'1. Cost of Service_parameters'!P56 -> 0
D136: Retirements/Removals (if applicable)
D137: Closing Balance | E137: =E134+E135-E136 -> 0 | F137: =F134+F135-F136 -> 0 | G137: =G134+G135-G136 -> 0 | H137: 0 | I137: 0 | J137: 0 | K137: 0 | L137: 0 | M137: 0 | N137: =N134+N135-N136 -> 0 | O137: 0
C139: Net Book Value
D140: Opening Balance | E140: =E128+E134 -> 0 | F140: =E141 -> 0 | G140: =F141 -> 0 | H140: 0 | I140: 0 | J140: 0 | K140: 0 | L140: 0 | M140: 0 | N140: 0 | O140: 0
D141: Closing Balance | E141: =E131+E137 -> 0 | F141: =F131+F137 -> 0 | G141: =G131+G137 -> 0 | H141: 0 | I141: 0 | J141: 0 | K141: 0 | L141: 0 | M141: 0 | N141: =N131+N137 -> 0 | O141: 0
D142: Net Fixed Assets (NFA) | E142: =AVERAGE(E140:E141) -> 0 | F142: =AVERAGE(F140:F141) -> 0 | G142: =AVERAGE(G140:G141) -> 0 | H142: 0 | I142: 0 | J142: 0 | K142: 0 | L142: 0 | M142: 0 | N142: =AVERAGE(N140:N141) -> 0 | O142: 0
B144: Net Fixed Assets - 1862
C146: Gross Book Value
D147: Opening Balance | F147: =E150 -> 0 | G147: =F150 -> 0 | H147: 0 | I147: 0 | J147: 0 | K147: 0 | L147: 0 | M147: 0 | N147: 0 | O147: 0
D148: Capital Additions during year (from ICM Costs) | F148: 0
D149: Retirements/Removals (if applicable)
D150: Closing Balance | E150: =E147+E148-E149 -> 0 | F150: =F147+F148-F149 -> 0 | G150: =G147+G148-G149 -> 0 | H150: 0 | I150: 0 | J150: 0 | K150: 0 | L150: 0 | M150: 0 | N150: =N147+N148-N149 -> 0 | O150: 0
C152: Accumulated Depreciation
D153: Opening Balance | F153: =E156 -> 0 | G153: =F156 -> 0 | H153: 0 | I153: 0 | J153: 0 | K153: 0 | L153: 0 | M153: 0 | N153: 0 | O153: 0
D154: Amortization expense during year | E154: =-E148/'1. Cost of Service_parameters'!G59/2 -> 0 | F154: =-F147/'1. Cost of Service_parameters'!G59 -> 0 | G154: =-G147/'1. Cost of Service_parameters'!H59 -> 0 | H154: =-H147/'1. Cost of Service_parameters'!I59 -> 0 | I154: =-I147/'1. Cost of Service_parameters'!J59 -> 0 | J154: =-J147/'1. Cost of Service_parameters'!K59 -> 0 | K154: =-K147/'1. Cost of Service_parameters'!L59 -> 0 | L154: =-L147/'1. Cost of Service_parameters'!M59 -> 0 | M154: =-M147/'1. Cost of Service_parameters'!N59 -> 0 | N154: =-N147/'1. Cost of Service_parameters'!O59 -> 0 | O154: =-O147/'1. Cost of Service_parameters'!P59 -> 0
D155: Retirements/Removals (if applicable)
D156: Closing Balance | E156: =E153+E154-E155 -> 0 | F156: =F153+F154-F155 -> 0 | G156: =G153+G154-G155 -> 0 | H156: 0 | I156: 0 | J156: 0 | K156: 0 | L156: 0 | M156: 0 | N156: =N153+N154-N155 -> 0 | O156: 0
C158: Net Book Value
D159: Opening Balance | E159: =E147+E153 -> 0 | F159: =E160 -> 0 | G159: =F160 -> 0 | H159: 0 | I159: 0 | J159: 0 | K159: 0 | L159: 0 | M159: 0 | N159: 0 | O159: 0
D160: Closing Balance | E160: =E150+E156 -> 0 | F160: =F150+F156 -> 0 | G160: =G150+G156 -> 0 | H160: 0 | I160: 0 | J160: 0 | K160: 0 | L160: 0 | M160: 0 | N160: =N150+N156 -> 0 | O160: 0
D161: Net Fixed Assets (NFA) | E161: =AVERAGE(E159:E160) -> 0 | F161: =AVERAGE(F159:F160) -> 0 | G161: =AVERAGE(G159:G160) -> 0 | H161: 0 | I161: 0 | J161: 0 | K161: 0 | L161: 0 | M161: 0 | N161: =AVERAGE(N159:N160) -> 0 | O161: 0
B163: Net Fixed Assets - 1924
C165: Gross Book Value
D166: Opening Balance | F166: =E169 -> 0 | G166: =F169 -> 0 | H166: 0 | I166: 0 | J166: 0 | K166: 0 | L166: 0 | M166: 0 | N166: 0 | O166: 0
D167: Capital Additions during year (from ICM Costs)
D168: Retirements/Removals (if applicable)
D169: Closing Balance | E169: =E166+E167-E168 -> 0 | F169: =F166+F167-F168 -> 0 | G169: =G166+G167-G168 -> 0 | H169: 0 | I169: 0 | J169: 0 | K169: 0 | L169: 0 | M169: 0 | N169: =N166+N167-N168 -> 0 | O169: 0
C171: Accumulated Depreciation
D172: Opening Balance | F172: =E175 -> 0 | G172: =F175 -> 0 | H172: 0 | I172: 0 | J172: 0 | K172: 0 | L172: 0 | M172: 0 | N172: 0 | O172: 0
D173: Amortization expense during year | E173: =-E167/'1. Cost of Service_parameters'!G62/2 -> 0 | F173: =-F166/'1. Cost of Service_parameters'!G62-'2. MIST Meters Assets_Rate Base'!F167/'1. Cost of Service_parameters'!G62/2 -> 0 | G173: =-G166/'1. Cost of Service_parameters'!H62-'2. MIST Meters Assets_Rate Base'!G167/'1. Cost of Service_parameters'!H62/2 -> 0 | H173: =-H166/'1. Cost of Service_parameters'!I62-'2. MIST Meters Assets_Rate Base'!H167/'1. Cost of Service_parameters'!I62/2 -> 0 | I173: =-I166/'1. Cost of Service_parameters'!J62-'2. MIST Meters Assets_Rate Base'!I167/'1. Cost of Service_parameters'!J62/2 -> 0 | J173: =-J166/'1. Cost of Service_parameters'!K62-'2. MIST Meters Assets_Rate Base'!J167/'1. Cost of Service_parameters'!K62/2 -> 0 | K173: =-K166/'1. Cost of Service_parameters'!L62-'2. MIST Meters Assets_Rate Base'!K167/'1. Cost of Service_parameters'!L62/2 -> 0 | L173: =-L166/'1. Cost of Service_parameters'!M62-'2. MIST Meters Assets_Rate Base'!L167/'1. Cost of Service_parameters'!M62/2 -> 0 | M173: =-M166/'1. Cost of Service_parameters'!N62-'2. MIST Meters Assets_Rate Base'!M167/'1. Cost of Service_parameters'!N62/2 -> 0 | N173: =-N166/'1. Cost of Service_parameters'!O62-'2. MIST Meters Assets_Rate Base'!N167/'1. Cost of Service_parameters'!O62/2 -> 0 | O173: =-O166/'1. Cost of Service_parameters'!P62-'2. MIST Meters Assets_Rate Base'!O167/'1. Cost of Service_parameters'!P62/2 -> 0
D174: Retirements/Removals (if applicable)
D175: Closing Balance | E175: =E172+E173-E174 -> 0 | F175: =F172+F173-F174 -> 0 | G175: =G172+G173-G174 -> 0 | H175: 0 | I175: 0 | J175: 0 | K175: 0 | L175: 0 | M175: 0 | N175: =N172+N173-N174 -> 0 | O175: 0
C177: Net Book Value
D178: Opening Balance | E178: =E166+E172 -> 0 | F178: =E179 -> 0 | G178: =F179 -> 0 | H178: 0 | I178: 0 | J178: 0 | K178: 0 | L178: 0 | M178: 0 | N178: 0 | O178: 0
D179: Closing Balance | E179: =E169+E175 -> 0 | F179: =F169+F175 -> 0 | G179: =G169+G175 -> 0 | H179: 0 | I179: 0 | J179: 0 | K179: 0 | L179: 0 | M179: 0 | N179: =N169+N175 -> 0 | O179: 0
D180: Net Fixed Assets (NFA) | E180: =AVERAGE(E178:E179) -> 0 | F180: =AVERAGE(F178:F179) -> 0 | G180: =AVERAGE(G178:G179) -> 0 | H180: 0 | I180: 0 | J180: 0 | K180: 0 | L180: 0 | M180: 0 | N180: =AVERAGE(N178:N179) -> 0 | O180: 0
B183: Net Fixed Assets - 1850
C185: Gross Book Value
D186: Opening Balance | F186: =E189 -> 0 | G186: =F189 -> 0 | H186: 0 | I186: 0 | J186: 0 | K186: 0 | L186: 0 | M186: 0 | N186: 0 | O186: 0
D187: Capital Additions during year (from ICM Costs)
D188: Retirements/Removals (if applicable)
D189: Closing Balance | E189: =E186+E187-E188 -> 0 | F189: =F186+F187-F188 -> 0 | G189: =G186+G187-G188 -> 0 | H189: 0 | I189: 0 | J189: 0 | K189: 0 | L189: 0 | M189: 0 | N189: =N186+N187-N188 -> 0 | O189: 0
C191: Accumulated Depreciation
D192: Opening Balance | F192: =E195 -> 0 | G192: =F195 -> 0 | H192: 0 | I192: 0 | J192: 0 | K192: 0 | L192: 0 | M192: 0 | N192: 0 | O192: 0
D193: Amortization expense during year | E193: =-E187/'1. Cost of Service_parameters'!G65/2 -> 0 | F193: =-F186/'1. Cost of Service_parameters'!G65-'2. MIST Meters Assets_Rate Base'!F187/'1. Cost of Service_parameters'!G65/2 -> 0 | G193: =-G186/'1. Cost of Service_parameters'!H65-'2. MIST Meters Assets_Rate Base'!G187/'1. Cost of Service_parameters'!H65/2 -> 0 | H193: =-H186/'1. Cost of Service_parameters'!I65-'2. MIST Meters Assets_Rate Base'!H187/'1. Cost of Service_parameters'!I65/2 -> 0 | I193: =-I186/'1. Cost of Service_parameters'!J65-'2. MIST Meters Assets_Rate Base'!I187/'1. Cost of Service_parameters'!J65/2 -> 0 | J193: =-J186/'1. Cost of Service_parameters'!K65-'2. MIST Meters Assets_Rate Base'!J187/'1. Cost of Service_parameters'!K65/2 -> 0 | K193: =-K186/'1. Cost of Service_parameters'!L65-'2. MIST Meters Assets_Rate Base'!K187/'1. Cost of Service_parameters'!L65/2 -> 0 | L193: =-L186/'1. Cost of Service_parameters'!M65-'2. MIST Meters Assets_Rate Base'!L187/'1. Cost of Service_parameters'!M65/2 -> 0 | M193: =-M186/'1. Cost of Service_parameters'!N65-'2. MIST Meters Assets_Rate Base'!M187/'1. Cost of Service_parameters'!N65/2 -> 0 | N193: =-N186/'1. Cost of Service_parameters'!O65-'2. MIST Meters Assets_Rate Base'!N187/'1. Cost of Service_parameters'!O65/2 -> 0 | O193: =-O186/'1. Cost of Service_parameters'!P65-'2. MIST Meters Assets_Rate Base'!O187/'1. Cost of Service_parameters'!P65/2 -> 0
D194: Retirements/Removals (if applicable)
D195: Closing Balance | E195: =E192+E193-E194 -> 0 | F195: =F192+F193-F194 -> 0 | G195: =G192+G193-G194 -> 0 | H195: 0 | I195: 0 | J195: 0 | K195: 0 | L195: 0 | M195: 0 | N195: =N192+N193-N194 -> 0 | O195: 0
C197: Net Book Value
D198: Opening Balance | E198: =E186+E192 -> 0 | F198: =E199 -> 0 | G198: =F199 -> 0 | H198: 0 | I198: 0 | J198: 0 | K198: 0 | L198: 0 | M198: 0 | N198: 0 | O198: 0
D199: Closing Balance | E199: =E189+E195 -> 0 | F199: =F189+F195 -> 0 | G199: =G189+G195 -> 0 | H199: 0 | I199: 0 | J199: 0 | K199: 0 | L199: 0 | M199: 0 | N199: =N189+N195 -> 0 | O199: 0
D200: Net Fixed Assets (NFA) | E200: =AVERAGE(E198:E199) -> 0 | F200: =AVERAGE(F198:F199) -> 0 | G200: =AVERAGE(G198:G199) -> 0 | H200: 0 | I200: 0 | J200: 0 | K200: 0 | L200: 0 | M200: 0 | N200: =AVERAGE(N198:N199) -> 0 | O200: 0
B203: Net Fixed Assets - 1982
C205: Gross Book Value
D206: Opening Balance | F206: =E209 -> 0 | G206: =F209 -> 0 | H206: 0 | I206: 0 | J206: 0 | K206: 0 | L206: 0 | M206: 0 | N206: 0 | O206: 0
D207: Capital Additions during year (from ICM Costs)
D208: Retirements/Removals (if applicable)
D209: Closing Balance | E209: =E206+E207-E208 -> 0 | F209: =F206+F207-F208 -> 0 | G209: =G206+G207-G208 -> 0 | H209: 0 | I209: 0 | J209: 0 | K209: 0 | L209: 0 | M209: 0 | N209: =N206+N207-N208 -> 0 | O209: 0
C211: Accumulated Depreciation
D212: Opening Balance | F212: =E215 -> 0 | G212: =F215 -> 0 | H212: 0 | I212: 0 | J212: 0 | K212: 0 | L212: 0 | M212: 0 | N212: 0 | O212: 0
D213: Amortization expense during year | E213: =-E207/'1. Cost of Service_parameters'!G68/2 -> 0 | F213: =-F206/'1. Cost of Service_parameters'!G68-'2. MIST Meters Assets_Rate Base'!F207/'1. Cost of Service_parameters'!G68/2 -> 0 | G213: =-G206/'1. Cost of Service_parameters'!H68-'2. MIST Meters Assets_Rate Base'!G207/'1. Cost of Service_parameters'!H68/2 -> 0 | H213: =-H206/'1. Cost of Service_parameters'!I68-'2. MIST Meters Assets_Rate Base'!H207/'1. Cost of Service_parameters'!I68/2 -> 0 | I213: =-I206/'1. Cost of Service_parameters'!J68-'2. MIST Meters Assets_Rate Base'!I207/'1. Cost of Service_parameters'!J68/2 -> 0 | J213: =-J206/'1. Cost of Service_parameters'!K68-'2. MIST Meters Assets_Rate Base'!J207/'1. Cost of Service_parameters'!K68/2 -> 0 | K213: =-K206/'1. Cost of Service_parameters'!L68-'2. MIST Meters Assets_Rate Base'!K207/'1. Cost of Service_parameters'!L68/2 -> 0 | L213: =-L206/'1. Cost of Service_parameters'!M68-'2. MIST Meters Assets_Rate Base'!L207/'1. Cost of Service_parameters'!M68/2 -> 0 | M213: =-M206/'1. Cost of Service_parameters'!N68-'2. MIST Meters Assets_Rate Base'!M207/'1. Cost of Service_parameters'!N68/2 -> 0 | N213: =-N206/'1. Cost of Service_parameters'!O68-'2. MIST Meters Assets_Rate Base'!N207/'1. Cost of Service_parameters'!O68/2 -> 0 | O213: =-O206/'1. Cost of Service_parameters'!P68-'2. MIST Meters Assets_Rate Base'!O207/'1. Cost of Service_parameters'!P68/2 -> 0
D214: Retirements/Removals (if applicable)
D215: Closing Balance | E215: =E212+E213-E214 -> 0 | F215: =F212+F213-F214 -> 0 | G215: =G212+G213-G214 -> 0 | H215: 0 | I215: 0 | J215: 0 | K215: 0 | L215: 0 | M215: 0 | N215: =N212+N213-N214 -> 0 | O215: 0
C217: Net Book Value
D218: Opening Balance | E218: =E206+E212 -> 0 | F218: =E219 -> 0 | G218: =F219 -> 0 | H218: 0 | I218: 0 | J218: 0 | K218: 0 | L218: 0 | M218: 0 | N218: 0 | O218: 0
D219: Closing Balance | E219: =E209+E215 -> 0 | F219: =F209+F215 -> 0 | G219: =G209+G215 -> 0 | H219: 0 | I219: 0 | J219: 0 | K219: 0 | L219: 0 | M219: 0 | N219: =N209+N215 -> 0 | O219: 0
D220: Net Fixed Assets (NFA) | E220: =AVERAGE(E218:E219) -> 0 | F220: =AVERAGE(F218:F219) -> 0 | G220: =AVERAGE(G218:G219) -> 0 | H220: 0 | I220: 0 | J220: 0 | K220: 0 | L220: 0 | M220: 0 | N220: =AVERAGE(N218:N219) -> 0 | O220: 0
B223: Net Fixed Assets - 1955
C225: Gross Book Value
D226: Opening Balance | F226: =E229 -> 0 | G226: =F229 -> 0 | H226: 0 | I226: 0 | J226: 0 | K226: 0 | L226: 0 | M226: 0 | N226: 0 | O226: 0
D227: Capital Additions during year (from ICM Costs)
D228: Retirements/Removals (if applicable)
D229: Closing Balance | E229: =E226+E227-E228 -> 0 | F229: =F226+F227-F228 -> 0 | G229: =G226+G227-G228 -> 0 | H229: 0 | I229: 0 | J229: 0 | K229: 0 | L229: 0 | M229: 0 | N229: =N226+N227-N228 -> 0 | O229: 0
C231: Accumulated Depreciation
D232: Opening Balance | F232: =E235 -> 0 | G232: =F235 -> 0 | H232: 0 | I232: 0 | J232: 0 | K232: 0 | L232: 0 | M232: 0 | N232: 0 | O232: 0
D233: Amortization expense during year | E233: =-E227/'1. Cost of Service_parameters'!G71/2 -> 0 | F233: =-F226/'1. Cost of Service_parameters'!G71-'2. MIST Meters Assets_Rate Base'!F227/'1. Cost of Service_parameters'!G71/2 -> 0 | G233: =-G226/'1. Cost of Service_parameters'!H71-'2. MIST Meters Assets_Rate Base'!G227/'1. Cost of Service_parameters'!H71/2 -> 0 | H233: =-H226/'1. Cost of Service_parameters'!I71-'2. MIST Meters Assets_Rate Base'!H227/'1. Cost of Service_parameters'!I71/2 -> 0 | I233: =-I226/'1. Cost of Service_parameters'!J71-'2. MIST Meters Assets_Rate Base'!I227/'1. Cost of Service_parameters'!J71/2 -> 0 | J233: =-J226/'1. Cost of Service_parameters'!K71-'2. MIST Meters Assets_Rate Base'!J227/'1. Cost of Service_parameters'!K71/2 -> 0 | K233: =-K226/'1. Cost of Service_parameters'!L71-'2. MIST Meters Assets_Rate Base'!K227/'1. Cost of Service_parameters'!L71/2 -> 0 | L233: =-L226/'1. Cost of Service_parameters'!M71-'2. MIST Meters Assets_Rate Base'!L227/'1. Cost of Service_parameters'!M71/2 -> 0 | M233: =-M226/'1. Cost of Service_parameters'!N71-'2. MIST Meters Assets_Rate Base'!M227/'1. Cost of Service_parameters'!N71/2 -> 0 | N233: =-N226/'1. Cost of Service_parameters'!O71-'2. MIST Meters Assets_Rate Base'!N227/'1. Cost of Service_parameters'!O71/2 -> 0 | O233: =-O226/'1. Cost of Service_parameters'!P71-'2. MIST Meters Assets_Rate Base'!O227/'1. Cost of Service_parameters'!P71/2 -> 0
D234: Retirements/Removals (if applicable)
D235: Closing Balance | E235: =E232+E233-E234 -> 0 | F235: =F232+F233-F234 -> 0 | G235: =G232+G233-G234 -> 0 | H235: 0 | I235: 0 | J235: 0 | K235: 0 | L235: 0 | M235: 0 | N235: =N232+N233-N234 -> 0 | O235: 0
C237: Net Book Value
D238: Opening Balance | E238: =E226+E232 -> 0 | F238: =E239 -> 0 | G238: =F239 -> 0 | H238: 0 | I238: 0 | J238: 0 | K238: 0 | L238: 0 | M238: 0 | N238: 0 | O238: 0
D239: Closing Balance | E239: =E229+E235 -> 0 | F239: =F229+F235 -> 0 | G239: =G229+G235 -> 0 | H239: 0 | I239: 0 | J239: 0 | K239: 0 | L239: 0 | M239: 0 | N239: =N229+N235 -> 0 | O239: 0
D240: Net Fixed Assets (NFA) | E240: =AVERAGE(E238:E239) -> 0 | F240: =AVERAGE(F238:F239) -> 0 | G240: =AVERAGE(G238:G239) -> 0 | H240: 0 | I240: 0 | J240: 0 | K240: 0 | L240: 0 | M240: 0 | N240: =AVERAGE(N238:N239) -> 0 | O240: 0
B243: Net Fixed Assets -
C245: Gross Book Value
D246: Opening Balance | F246: =E249 -> 0 | G246: =F249 -> 0 | H246: 0 | I246: 0 | J246: 0 | K246: 0 | L246: 0 | M246: 0 | N246: 0 | O246: 0
D247: Capital Additions during year (from ICM Costs)
D248: Retirements/Removals (if applicable)
D249: Closing Balance | E249: =E246+E247-E248 -> 0 | F249: =F246+F247-F248 -> 0 | G249: =G246+G247-G248 -> 0 | H249: 0 | I249: 0 | J249: 0 | K249: 0 | L249: 0 | M249: 0 | N249: =N246+N247-N248 -> 0 | O249: 0
C251: Accumulated Depreciation
D252: Opening Balance | F252: =E255 -> 0 | G252: =F255 -> 0 | H252: 0 | I252: 0 | J252: 0 | K252: 0 | L252: 0 | M252: 0 | N252: 0 | O252: 0
D253: Amortization expense during year | E253: 0 | F253: 0 | G253: 0 | H253: 0 | I253: 0 | J253: 0 | K253: 0 | L253: 0 | M253: 0 | N253: 0 | O253: 0
D254: Retirements/Removals (if applicable)
D255: Closing Balance | E255: =E252+E253-E254 -> 0 | F255: =F252+F253-F254 -> 0 | G255: =G252+G253-G254 -> 0 | H255: 0 | I255: 0 | J255: 0 | K255: 0 | L255: 0 | M255: 0 | N255: =N252+N253-N254 -> 0 | O255: 0
C257: Net Book Value
D258: Opening Balance | E258: =E246+E252 -> 0 | F258: =E259 -> 0 | G258: =F259 -> 0 | H258: 0 | I258: 0 | J258: 0 | K258: 0 | L258: 0 | M258: 0 | N258: 0 | O258: 0
D259: Closing Balance | E259: =E249+E255 -> 0 | F259: =F249+F255 -> 0 | G259: =G249+G255 -> 0 | H259: 0 | I259: 0 | J259: 0 | K259: 0 | L259: 0 | M259: 0 | N259: =N249+N255 -> 0 | O259: 0
D260: Incremental CAPEX | E260: =E259 -> 0 | F260: =AVERAGE(F258:F259) -> 0 | G260: =AVERAGE(G258:G259) -> 0 | H260: 0 | I260: 0 | J260: 0 | K260: 0 | L260: 0 | M260: 0 | N260: =AVERAGE(N258:N259) -> 0 | O260: 0
D267: Additions | E267: =E15+E34+E53+E72+E91+E110+E129+E148+E167+E187+E207+E227+E247 -> 1985917.65 | F267: =F15+F34+F53+F72+F91+F110+F129+F148+F167+F187+F207+F227+F247 -> 41003.37 | G267: 1666816.05 | H267: 12068.08 | I267: 2248671.41 | J267: 1982424.18 | K267: 1076258.88 | L267: 24588.12 | M267: 0 | N267: =N15+N34+N53+N72+N91+N110+N129+N148+N167+N187+N207+N227+N247 -> 0 | O267: 0
D268: Net Fixed Assets (NFA) | E268: =E28+E47+E66+E85+E104+E123+E142+E161+E180+E200+E220+E240+E260 -> 992958.825 | F268: =F28+F47+F66+F85+F104+F123+F142+F161+F180+F200+F220+F240+F260 -> 1921398.91 | G268: =G28+G47+G66+G85+G104+G123+G142+G161+G180+G200+G220+G240+G260 -> 2608962.74 | H268: 3311575.42 | I268: 4329846.02 | J268: 6288495.64 | K268: 7555111.945 | L268: 7766913.675 | M268: 7426531.9 | N268: =N28+N47+N66+N85+N104+N123+N142+N161+N180+N200+N220+N240+N260 -> 7073579.24 | O268: 6720626.58
... 1 more rows

Sheet 3. UCC_Calculations
C3: MIST Meters True-up Model
A9: Sheet 3: CCA For PILs Calculation
A11: UCC/Class 47 | D11: 2016 | E11: 2017 | F11: 2018 | G11: 2019 | H11: 2020 | I11: 2021 | J11: 2022 | K11: 2023 | L11: 2024 | M11: 2025 | N11: 2026
D12: Actual | E12: Actual | F12: Actual | G12: Actual | H12: Actual | I12: Actual | J12: Actual | K12: Actual | L12: Actual | M12: Actual | N12: Actual
A14: Opening UCC | D14: 0 | E14: =D17-D22 -> 1906480.944 | F14: =E17-E22 -> 1793325.704 | G14: =F17-F22 -> 3250003.055 | H14: 3001588.168 | I14: 4920185.668 | J14: 6429698.027 | K14: 6948530.71 | L14: 6416252.848 | M14: =L17-L22 -> 5902952.62 | N14: =M17-M22 -> 5430716.411
A15: Capital Additions | D15: ='2. MIST Meters Assets_Rate Base'!E267-D29-D44-D59-D74 -> 1985917.65 | E15: ='2. MIST Meters Assets_Rate Base'!F267-E29-E44-E59-E74 -> 41003.37 | F15: ='2. MIST Meters Assets_Rate Base'!G267-F29-F44-F59-F74 -> 1666816.05 | G15: ='2. MIST Meters Assets_Rate Base'!H267-G29-G44-G59-G74 -> 12068.08 | H15: ='2. MIST Meters Assets_Rate Base'!I267-H29-H44-H59-H74 -> 2248671.41 | I15: ='2. MIST Meters Assets_Rate Base'!J267-I29-I44-I59-I74 -> 1982424.18 | J15: ='2. MIST Meters Assets_Rate Base'!K267-J29-J44-J59-J74 -> 1076258.88 | K15: ='2. MIST Meters Assets_Rate Base'!L267-K29-K44-K59-K74 -> 24588.12 | L15: ='2. MIST Meters Assets_Rate Base'!M267-L29-L44-L59-L74 -> 0 | M15: ='2. MIST Meters Assets_Rate Base'!N267-M29-M44-M59-M74 -> 0 | N15: ='2. MIST Meters Assets_Rate Base'!O267-N29-N44-N59-N74 -> 0
A16: Retirements/Removals (if applicable) | D16: ='2. MIST Meters Assets_Rate Base'!E16 -> 0
A17: UCC Before Half Year Rule | D17: =SUM(D14:D15)-D16 -> 1985917.65 | E17: =SUM(E14:E15)-E16 -> 1947484.314 | F17: =SUM(F14:F15)-F16 -> 3460141.754 | G17: 3262071.135 | H17: 5250259.578 | I17: 6902609.848 | J17: 7505956.907 | K17: 6973118.83 | L17: 6416252.848 | M17: =SUM(M14:M15)-M16 -> 5902952.62 | N17: 5430716.411
A18: Half Year Rule (1/2 Additions - Disposals) | D18: =IF(((D15-D16)/2)<0, 0, (D15-D16)/2) -> 992958.825 | E18: =IF(((E15-E16)/2)<0, 0, (E15-E16)/2) -> 20501.685 | F18: =IF(((F15-F16)/2)<0, 0, (F15-F16)/2) -> 833408.025 | G18: =IF(((G15-G16)/2)<0, 0, (G15-G16)/2) -> 6034.04 | H18: 1124335.705 | I18: 991212.09 | J18: 538129.44 | K18: 12294.06 | L18: 0 | M18: =IF(((M15-M16)/2)<0, 0, (M15-M16)/2) -> 0 | N18: 0
A19: Reduced UCC | D19: =D18+D14 -> 992958.825 | E19: =E18+E14 -> 1926982.629 | F19: =F18+F14 -> 2626733.729 | G19: =G18+G14 -> 3256037.095 | H19: 4125923.873 | I19: 5911397.758 | J19: 6967827.467 | K19: 6960824.77 | L19: 6416252.848 | M19: =M18+M14 -> 5902952.62 | N19: 5430716.411
A20: CCA Rate Class | D20: 47 | E20: 47 | F20: 47 | G20: 47 | H20: 47 | I20: 47 | J20: 47 | K20: 47 | L20: 47 | M20: 47 | N20: 47
A21: CCA Rate | D21: 0.08 | E21: 0.08 | F21: 0.08 | G21: 0.08 | H21: 0.08 | I21: 0.08 | J21: 0.08 | K21: 0.08 | L21: 0.08 | M21: 0.08 | N21: 0.08
A22: CCA | D22: =D19*D21 -> 79436.706 | E22: 154158.6103 | F22: 210138.6983 | G22: 260482.9676 | H22: 330073.9098 | I22: 472911.8206 | J22: 557426.1974 | K22: 556865.9816 | L22: 513300.2279 | M22: 472236.2096 | N22: 434457.3129
A23: Closing UCC | D23: =IF((D17-D22)<0, 0, D17-D22) -> 1906480.944 | E23: =IF((E17-E22)<0, 0, E17-E22) -> 1793325.704 | F23: =IF((F17-F22)<0, 0, F17-F22) -> 3250003.055 | G23: 3001588.168 | H23: 4920185.668 | I23: 6429698.027 | J23: 6948530.71 | K23: 6416252.848 | L23: 5902952.62 | M23: =IF((M17-M22)<0, 0, M17-M22) -> 5430716.411 | N23: 4996259.098
A25: UCC/Class 8 | D25: 2016 | E25: 2017 | F25: 2018 | G25: 2019 | H25: 2020 | I25: 2021 | J25: 2022 | K25: 2023 | L25: 2024 | M25: 2025 | N25: 2026
D26: =D12 -> Actual | E26: Actual | F26: =F12 -> Actual | G26: Actual | H26: Actual | I26: Actual | J26: Actual | K26: Actual | L26: Actual | M26: =M12 -> Actual | N26: Actual
A28: Opening UCC | D28: 0 | E28: =D31-D36 -> 0 | F28: =E31-E36 -> 0 | G28: 0 | H28: 0 | I28: 0 | J28: 0 | K28: 0 | L28: 0 | M28: =L31-L36 -> 0 | N28: =M31-M36 -> 0
A29: Capital Additions | D29: ='2. MIST Meters Assets_Rate Base'!E227+'2. MIST Meters Assets_Rate Base'!E207+'2. MIST Meters Assets_Rate Base'!E148+'2. MIST Meters Assets_Rate Base'!E110 -> 0 | E29: ='2. MIST Meters Assets_Rate Base'!F227+'2. MIST Meters Assets_Rate Base'!F207+'2. MIST Meters Assets_Rate Base'!F148+'2. MIST Meters Assets_Rate Base'!F110 -> 0 | F29: ='2. MIST Meters Assets_Rate Base'!G227+'2. MIST Meters Assets_Rate Base'!G207+'2. MIST Meters Assets_Rate Base'!G148+'2. MIST Meters Assets_Rate Base'!G110 -> 0 | G29: ='2. MIST Meters Assets_Rate Base'!H227+'2. MIST Meters Assets_Rate Base'!H207+'2. MIST Meters Assets_Rate Base'!H148+'2. MIST Meters Assets_Rate Base'!H110 -> 0 | H29: ='2. MIST Meters Assets_Rate Base'!I227+'2. MIST Meters Assets_Rate Base'!I207+'2. MIST Meters Assets_Rate Base'!I148+'2. MIST Meters Assets_Rate Base'!I110 -> 0 | I29: ='2. MIST Meters Assets_Rate Base'!J227+'2. MIST Meters Assets_Rate Base'!J207+'2. MIST Meters Assets_Rate Base'!J148+'2. MIST Meters Assets_Rate Base'!J110 -> 0 | J29: ='2. MIST Meters Assets_Rate Base'!K227+'2. MIST Meters Assets_Rate Base'!K207+'2. MIST Meters Assets_Rate Base'!K148+'2. MIST Meters Assets_Rate Base'!K110 -> 0 | K29: ='2. MIST Meters Assets_Rate Base'!L227+'2. MIST Meters Assets_Rate Base'!L207+'2. MIST Meters Assets_Rate Base'!L148+'2. MIST Meters Assets_Rate Base'!L110 -> 0 | L29: ='2. MIST Meters Assets_Rate Base'!M227+'2. MIST Meters Assets_Rate Base'!M207+'2. MIST Meters Assets_Rate Base'!M148+'2. MIST Meters Assets_Rate Base'!M110 -> 0 | M29: ='2. MIST Meters Assets_Rate Base'!N227+'2. MIST Meters Assets_Rate Base'!N207+'2. MIST Meters Assets_Rate Base'!N148+'2. MIST Meters Assets_Rate Base'!N110 -> 0 | N29: ='2. MIST Meters Assets_Rate Base'!O227+'2. MIST Meters Assets_Rate Base'!O207+'2. MIST Meters Assets_Rate Base'!O148+'2. MIST Meters Assets_Rate Base'!O110 -> 0
A30: Retirements/Removals (if applicable)
A31: UCC Before Half Year Rule | D31: =SUM(D28:D29)-D30 -> 0 | E31: =SUM(E28:E29)-E30 -> 0 | F31: =SUM(F28:F29)-F30 -> 0 | G31: 0 | H31: 0 | I31: 0 | J31: 0 | K31: 0 | L31: 0 | M31: =SUM(M28:M29)-M30 -> 0 | N31: 0
A32: Half Year Rule (1/2 Additions - Disposals) | D32: =IF((SUM(D29:D29)/2)<0, 0, SUM(D29:D29)/2) -> 0 | E32: =IF((SUM(E29:E29)/2)<0, 0, SUM(E29:E29)/2) -> 0 | F32: =IF((SUM(F29:F29)/2)<0, 0, SUM(F29:F29)/2) -> 0 | G32: 0 | H32: 0 | I32: 0 | J32: 0 | K32: 0 | L32: 0 | M32: =IF((SUM(M29:M29)/2)<0, 0, SUM(M29:M29)/2) -> 0 | N32: 0
A33: Reduced UCC | D33: =D32+D28 -> 0 | E33: =E32+E28 -> 0 | F33: =F32+F28 -> 0 | G33: 0 | H33: 0 | I33: 0 | J33: 0 | K33: 0 | L33: 0 | M33: =M32+M28 -> 0 | N33: 0
A34: CCA Rate Class | D34: 8 | E34: 8 | F34: 8 | G34: 8 | H34: 8 | I34: 8 | J34: 8 | K34: 8 | L34: 8 | M34: 8 | N34: 8
A35: CCA Rate | D35: 0.2 | E35: 0.2 | F35: 0.2 | G35: 0.2 | H35: 0.2 | I35: 0.2 | J35: 0.2 | K35: 0.2 | L35: 0.2 | M35: 0.2 | N35: 0.2
A36: CCA | D36: =D35*D33 -> 0 | E36: =E35*E33 -> 0 | F36: =F35*F33 -> 0 | G36: 0 | H36: 0 | I36: 0 | J36: 0 | K36: 0 | L36: 0 | M36: =M35*M33 -> 0 | N36: 0
A37: Closing UCC | D37: =IF((D31-D36)<0, 0, D31-D36) -> 0 | E37: =IF((E31-E36)<0, 0, E31-E36) -> 0 | F37: =IF((F31-F36)<0, 0, F31-F36) -> 0 | G37: 0 | H37: 0 | I37: 0 | J37: 0 | K37: 0 | L37: 0 | M37: =IF((M31-M36)<0, 0, M31-M36) -> 0 | N37: 0
A40: UCC/Class 10 | D40: 2016 | E40: 2017 | F40: 2018 | G40: 2019 | H40: 2020 | I40: 2021 | J40: 2022 | K40: 2023 | L40: 2024 | M40: 2025 | N40: 2026
D41: Audited Actual | E41: Forecast | F41: Forecast | G41: Forecast | H41: Forecast | I41: Forecast | J41: Forecast | K41: Forecast | L41: Forecast | M41: Forecast | N41: Forecast
A43: Opening UCC | D43: 0 | E43: =D46-D51 -> 0 | F43: =E46-E51 -> 0 | G43: 0 | H43: 0 | I43: 0 | J43: 0 | K43: 0 | L43: 0 | M43: =L46-L51 -> 0 | N43: =M46-M51 -> 0
A44: Capital Additions | D44: ='2. MIST Meters Assets_Rate Base'!E53 -> 0 | E44: ='2. MIST Meters Assets_Rate Base'!F53 -> 0 | F44: ='2. MIST Meters Assets_Rate Base'!G53 -> 0 | G44: ='2. MIST Meters Assets_Rate Base'!H53 -> 0 | H44: ='2. MIST Meters Assets_Rate Base'!I53 -> 0 | I44: ='2. MIST Meters Assets_Rate Base'!J53 -> 0 | J44: ='2. MIST Meters Assets_Rate Base'!K53 -> 0 | K44: ='2. MIST Meters Assets_Rate Base'!L53 -> 0 | L44: ='2. MIST Meters Assets_Rate Base'!M53 -> 0 | M44: ='2. MIST Meters Assets_Rate Base'!N53 -> 0 | N44: ='2. MIST Meters Assets_Rate Base'!O53 -> 0
A45: Retirements/Removals (if applicable)
A46: UCC Before Half Year Rule | D46: =SUM(D43:D44)-D45 -> 0 | E46: =SUM(E43:E44)-E45 -> 0 | F46: =SUM(F43:F44)-F45 -> 0 | G46: 0 | H46: 0 | I46: 0 | J46: 0 | K46: 0 | L46: 0 | M46: =SUM(M43:M44)-M45 -> 0 | N46: 0
A47: Half Year Rule (1/2 Additions - Disposals) | D47: =IF((SUM(D44:D44)/2)<0, 0, SUM(D44:D44)/2) -> 0 | E47: =IF((SUM(E44:E44)/2)<0, 0, SUM(E44:E44)/2) -> 0 | F47: =IF((SUM(F44:F44)/2)<0, 0, SUM(F44:F44)/2) -> 0 | G47: 0 | H47: 0 | I47: 0 | J47: 0 | K47: 0 | L47: 0 | M47: =IF((SUM(M44:M44)/2)<0, 0, SUM(M44:M44)/2) -> 0 | N47: 0
A48: Reduced UCC | D48: =D47+D43 -> 0 | E48: =E47+E43 -> 0 | F48: =F47+F43 -> 0 | G48: 0 | H48: 0 | I48: 0 | J48: 0 | K48: 0 | L48: 0 | M48: =M47+M43 -> 0 | N48: 0
A49: CCA Rate Class | D49: 10 | E49: 10 | F49: 10 | G49: 10 | H49: 10 | I49: 10 | J49: 10 | K49: 10 | L49: 10 | M49: 10 | N49: 10
A50: CCA Rate | D50: 0.3 | E50: 0.3 | F50: 0.3 | G50: 0.3 | H50: 0.3 | I50: 0.3 | J50: 0.3 | K50: 0.3 | L50: 0.3 | M50: 0.3 | N50: 0.3
A51: CCA | D51: =D50*D48 -> 0 | E51: =E50*E48 -> 0 | F51: =F50*F48 -> 0 | G51: 0 | H51: 0 | I51: 0 | J51: 0 | K51: 0 | L51: 0 | M51: =M50*M48 -> 0 | N51: 0
A52: Closing UCC | D52: =IF((D46-D51)<0, 0, D46-D51) -> 0 | E52: =IF((E46-E51)<0, 0, E46-E51) -> 0 | F52: =IF((F46-F51)<0, 0, F46-F51) -> 0 | G52: 0 | H52: 0 | I52: 0 | J52: 0 | K52: 0 | L52: 0 | M52: =IF((M46-M51)<0, 0, M46-M51) -> 0 | N52: 0
A55: UCC/Class 50 | D55: 2016 | E55: 2017 | F55: 2018 | G55: 2019 | H55: 2020 | I55: 2021 | J55: 2022 | K55: 2023 | L55: 2024 | M55: 2025 | N55: 2026
D56: Audited Actual | E56: Forecast | F56: Forecast | G56: Forecast | H56: Forecast | I56: Forecast | J56: Forecast | K56: Forecast | L56: Forecast | M56: Forecast | N56: Forecast
A58: Opening UCC | D58: 0 | E58: =D61-D66 -> 0 | F58: =E61-E66 -> 0 | G58: 0 | H58: 0 | I58: 0 | J58: 0 | K58: 0 | L58: 0 | M58: =L61-L66 -> 0 | N58: =M61-M66 -> 0
A59: Capital Additions | D59: ='2. MIST Meters Assets_Rate Base'!E91+'2. MIST Meters Assets_Rate Base'!E167 -> 0 | E59: ='2. MIST Meters Assets_Rate Base'!F91+'2. MIST Meters Assets_Rate Base'!F167 -> 0 | F59: ='2. MIST Meters Assets_Rate Base'!G91+'2. MIST Meters Assets_Rate Base'!G167 -> 0 | G59: ='2. MIST Meters Assets_Rate Base'!H91+'2. MIST Meters Assets_Rate Base'!H167 -> 0 | H59: ='2. MIST Meters Assets_Rate Base'!I91+'2. MIST Meters Assets_Rate Base'!I167 -> 0 | I59: ='2. MIST Meters Assets_Rate Base'!J91+'2. MIST Meters Assets_Rate Base'!J167 -> 0 | J59: ='2. MIST Meters Assets_Rate Base'!K91+'2. MIST Meters Assets_Rate Base'!K167 -> 0 | K59: ='2. MIST Meters Assets_Rate Base'!L91+'2. MIST Meters Assets_Rate Base'!L167 -> 0 | L59: ='2. MIST Meters Assets_Rate Base'!M91+'2. MIST Meters Assets_Rate Base'!M167 -> 0 | M59: ='2. MIST Meters Assets_Rate Base'!N91+'2. MIST Meters Assets_Rate Base'!N167 -> 0 | N59: ='2. MIST Meters Assets_Rate Base'!O91+'2. MIST Meters Assets_Rate Base'!O167 -> 0
A60: Retirements/Removals (if applicable)
A61: UCC Before Half Year Rule | D61: =SUM(D58:D59)-D60 -> 0 | E61: =SUM(E58:E59)-E60 -> 0 | F61: =SUM(F58:F59)-F60 -> 0 | G61: 0 | H61: 0 | I61: 0 | J61: 0 | K61: 0 | L61: 0 | M61: =SUM(M58:M59)-M60 -> 0 | N61: 0
A62: Half Year Rule (1/2 Additions - Disposals) | D62: =IF((SUM(D59:D59)/2)<0, 0, SUM(D59:D59)/2) -> 0 | E62: =IF((SUM(E59:E59)/2)<0, 0, SUM(E59:E59)/2) -> 0 | F62: =IF((SUM(F59:F59)/2)<0, 0, SUM(F59:F59)/2) -> 0 | G62: 0 | H62: 0 | I62: 0 | J62: 0 | K62: 0 | L62: 0 | M62: =IF((SUM(M59:M59)/2)<0, 0, SUM(M59:M59)/2) -> 0 | N62: 0
A63: Reduced UCC | D63: =D62+D58 -> 0 | E63: =E62+E58 -> 0 | F63: =F62+F58 -> 0 | G63: 0 | H63: 0 | I63: 0 | J63: 0 | K63: 0 | L63: 0 | M63: =M62+M58 -> 0 | N63: 0
A64: CCA Rate Class | D64: 50 | E64: 50 | F64: 50 | G64: 50 | H64: 50 | I64: 50 | J64: 50 | K64: 50 | L64: 50 | M64: 50 | N64: 50
A65: CCA Rate | D65: 0.55 | E65: 0.55 | F65: 0.55 | G65: 0.55 | H65: 0.55 | I65: 0.55 | J65: 0.55 | K65: 0.55 | L65: 0.55 | M65: 0.55 | N65: 0.55
A66: CCA | D66: =D65*D63 -> 0 | E66: =E65*E63 -> 0 | F66: =F65*F63 -> 0 | G66: 0 | H66: 0 | I66: 0 | J66: 0 | K66: 0 | L66: 0 | M66: =M65*M63 -> 0 | N66: 0
A67: Closing UCC | D67: =IF((D61-D66)<0, 0, D61-D66) -> 0 | E67: =IF((E61-E66)<0, 0, E61-E66) -> 0 | F67: =IF((F61-F66)<0, 0, F61-F66) -> 0 | G67: 0 | H67: 0 | I67: 0 | J67: 0 | K67: 0 | L67: 0 | M67: =IF((M61-M66)<0, 0, M61-M66) -> 0 | N67: 0
A70: UCC/Class 12 | D70: 2016 | E70: 2017 | F70: 2018 | G70: 2019 | H70: 2020 | I70: 2021 | J70: 2022 | K70: 2023 | L70: 2024 | M70: 2025 | N70: 2026
D71: Audited Actual | E71: Forecast | F71: Forecast | G71: Forecast | H71: Forecast | I71: Forecast | J71: Forecast | K71: Forecast | L71: Forecast | M71: Forecast | N71: Forecast
A73: Opening UCC | D73: 0 | E73: =D76-D81 -> 0 | F73: =E76-E81 -> 0 | G73: 0 | H73: 0 | I73: 0 | J73: 0 | K73: 0 | L73: 0 | M73: =L76-L81 -> 0 | N73: =M76-M81 -> 0
A74: Capital Additions | D74: ='2. MIST Meters Assets_Rate Base'!E129 -> 0 | E74: ='2. MIST Meters Assets_Rate Base'!F129 -> 0 | F74: ='2. MIST Meters Assets_Rate Base'!G129 -> 0 | G74: ='2. MIST Meters Assets_Rate Base'!H129 -> 0 | H74: ='2. MIST Meters Assets_Rate Base'!I129 -> 0 | I74: ='2. MIST Meters Assets_Rate Base'!J129 -> 0 | J74: ='2. MIST Meters Assets_Rate Base'!K129 -> 0 | K74: ='2. MIST Meters Assets_Rate Base'!L129 -> 0 | L74: ='2. MIST Meters Assets_Rate Base'!M129 -> 0 | M74: ='2. MIST Meters Assets_Rate Base'!N129 -> 0 | N74: ='2. MIST Meters Assets_Rate Base'!O129 -> 0
A75: Retirements/Removals (if applicable)
A76: UCC Before Half Year Rule | D76: =SUM(D73:D74)-D75 -> 0 | E76: =SUM(E73:E74)-E75 -> 0 | F76: =SUM(F73:F74)-F75 -> 0 | G76: 0 | H76: 0 | I76: 0 | J76: 0 | K76: 0 | L76: 0 | M76: =SUM(M73:M74)-M75 -> 0 | N76: 0
A77: Half Year Rule (1/2 Additions - Disposals) | D77: =IF((SUM(D74:D74)/2)<0, 0, SUM(D74:D74)/2) -> 0 | E77: =IF((SUM(E74:E74)/2)<0, 0, SUM(E74:E74)/2) -> 0 | F77: =IF((SUM(F74:F74)/2)<0, 0, SUM(F74:F74)/2) -> 0 | G77: 0 | H77: 0 | I77: 0 | J77: 0 | K77: 0 | L77: 0 | M77: =IF((SUM(M74:M74)/2)<0, 0, SUM(M74:M74)/2) -> 0 | N77: 0
A78: Reduced UCC | D78: =D77+D73 -> 0 | E78: =E77+E73 -> 0 | F78: =F77+F73 -> 0 | G78: 0 | H78: 0 | I78: 0 | J78: 0 | K78: 0 | L78: 0 | M78: =M77+M73 -> 0 | N78: 0
A79: CCA Rate Class | D79: 12 | E79: 12 | F79: 12 | G79: 12 | H79: 12 | I79: 12 | J79: 12 | K79: 12 | L79: 12 | M79: 12 | N79: 12
A80: CCA Rate | D80: 1 | E80: 1 | F80: 1 | G80: 1 | H80: 1 | I80: 1 | J80: 1 | K80: 1 | L80: 1 | M80: 1 | N80: 1
A81: CCA | D81: =D80*D78 -> 0 | E81: =E80*E78 -> 0 | F81: =F80*F78 -> 0 | G81: 0 | H81: 0 | I81: 0 | J81: 0 | K81: 0 | L81: 0 | M81: =M80*M78 -> 0 | N81: 0
A82: Closing UCC | D82: =IF((D76-D81)<0, 0, D76-D81) -> 0 | E82: =IF((E76-E81)<0, 0, E76-E81) -> 0 | F82: =IF((F76-F81)<0, 0, F76-F81) -> 0 | G82: 0 | H82: 0 | I82: 0 | J82: 0 | K82: 0 | L82: 0 | M82: =IF((M76-M81)<0, 0, M76-M81) -> 0 | N82: 0
B86: Capital Additions | D86: =SUM(D74,D59,D44,D29,D15) -> 1985917.65 | E86: =SUM(E74,E59,E44,E29,E15) -> 41003.37 | F86: =SUM(F74,F59,F44,F29,F15) -> 1666816.05 | G86: 12068.08 | H86: 2248671.41 | I86: 1982424.18 | J86: 1076258.88 | K86: 24588.12 | L86: 0 | M86: =SUM(M74,M59,M44,M29,M15) -> 0 | N86: 0
B88: CCA | D88: =SUM(D81,D66,D51,D36,D22,) -> 79436.706 | E88: =SUM(E81,E66,E51,E36,E22,) -> 154158.6103 | F88: =SUM(F81,F66,F51,F36,F22,) -> 210138.6983 | G88: 260482.9676 | H88: 330073.9098 | I88: 472911.8206 | J88: 557426.1974 | K88: 556865.9816 | L88: 513300.2279 | M88: =SUM(M81,M66,M51,M36,M22,) -> 472236.2096 | N88: 434457.3129

Sheet 4. Fund Adder Revenues
H4: MIST Meters True-up Model
B9: Sheet 4: MIST Meters Fund Adder Revenues
B14: Prescribed Interest Rates | C14: Approved Deferral and Variance Accounts | D14: CWIP | F14: Date | G14: Year | H14: Quarter | J14: Opening Balance (Principal) | K14: Funding Adder Revenues | L14: Interest Rate | M14: Interest | N14: Principal & Interest (Cumm.)
B16: 2016 Q1 | C16: 0.011 | D16: 0.0292 | F16: 2016-01-01 | G16: =YEAR(F16) -> 2016 | H16: =IF(MONTH(F16)=0,"",IF(MONTH(F16)<4,"Q1",IF(MONTH(F16)<7,"Q2",IF(MONTH(F16)<10,"Q3","Q4")))) -> Q1 | I16: =CONCATENATE(G16," ",H16) -> 2016 Q1 | J16: 0 | L16: 0.011 | M16: =ROUND(J16*L16/12,2) -> 0 | N16: =K16+M16 -> 0
B17: 2016 Q2 | C17: 0.011 | D17: 0.0292 | F17: 2016-02-01 | G17: =YEAR(F17) -> 2016 | H17: =IF(MONTH(F17)=0,"",IF(MONTH(F17)<4,"Q1",IF(MONTH(F17)<7,"Q2",IF(MONTH(F17)<10,"Q3","Q4")))) -> Q1 | I17: =CONCATENATE(G17," ",H17) -> 2016 Q1 | J17: =J16+K16 -> 0 | L17: 0.011 | M17: =ROUND(J17*L17/12,2) -> 0 | N17: =N16+K17+M17 -> 0
B18: 2016 Q3 | C18: 0.011 | D18: 0.0292 | F18: 2016-03-01 | G18: 2016 | H18: Q1 | I18: 2016 Q1 | J18: =J17+K17 -> 0 | L18: 0.011 | M18: 0 | N18: =N17+K18+M18 -> 0
B19: 2016 Q4 | C19: 0.011 | D19: 0.0246 | F19: 2016-04-01 | G19: 2016 | H19: Q2 | I19: 2016 Q2 | J19: 0 | L19: 0.011 | M19: 0 | N19: 0
B20: 2017 Q1 | C20: 0.011 | D20: 0.0281 | F20: 2016-05-01 | G20: 2016 | H20: Q2 | I20: 2016 Q2 | J20: 0 | L20: 0.011 | M20: 0 | N20: 0
B21: 2017 Q2 | C21: 0.011 | D21: 0.0281 | F21: 2016-06-01 | G21: 2016 | H21: Q2 | I21: 2016 Q2 | J21: 0 | L21: 0.011 | M21: 0 | N21: 0
B22: 2017 Q3 | C22: 0.011 | D22: 0.0253 | F22: 2016-07-01 | G22: 2016 | H22: Q3 | I22: 2016 Q3 | J22: 0 | L22: 0.011 | M22: 0 | N22: 0
B23: 2017 Q4 | C23: 0.015 | D23: 0.0299 | F23: 2016-08-01 | G23: 2016 | H23: Q3 | I23: 2016 Q3 | J23: 0 | L23: 0.011 | M23: 0 | N23: 0
B24: 2018 Q1 | C24: 0.015 | D24: 0.0299 | F24: 2016-09-01 | G24: 2016 | H24: Q3 | I24: 2016 Q3 | J24: 0 | L24: 0.011 | M24: 0 | N24: 0
B25: 2018 Q2 | C25: 0.0189 | D25: 0.0335 | F25: 2016-10-01 | G25: 2016 | H25: Q4 | I25: 2016 Q4 | J25: 0 | L25: 0.011 | M25: 0 | N25: 0
B26: 2018 Q3 | C26: 0.0189 | D26: 0.0335 | F26: 2016-11-01 | G26: 2016 | H26: Q4 | I26: 2016 Q4 | J26: 0 | L26: 0.011 | M26: 0 | N26: 0
B27: 2018 Q4 | C27: 0.0217 | D27: 0.0335 | F27: 2016-12-01 | G27: 2016 | H27: Q4 | I27: 2016 Q4 | J27: 0 | L27: 0.011 | M27: 0 | N27: 0
B28: 2019 Q1 | C28: 0.0245 | D28: 0.0382 | F28: 2017-01-01 | G28: 2017 | H28: Q1 | I28: 2017 Q1 | J28: 0 | L28: 0.011 | M28: 0 | N28: 0
B29: 2019 Q2 | C29: 0.0218 | D29: 0.0339 | F29: 2017-02-01 | G29: 2017 | H29: Q1 | I29: 2017 Q1 | J29: 0 | L29: 0.011 | M29: 0 | N29: 0
B30: 2019 Q3 | C30: 0.0218 | D30: 0.0288 | F30: 2017-03-01 | G30: 2017 | H30: Q1 | I30: 2017 Q1 | J30: 0 | L30: 0.011 | M30: 0 | N30: 0
B31: 2019 Q4 | C31: 0.0218 | D31: 0.0288 | F31: 2017-04-01 | G31: 2017 | H31: Q2 | I31: 2017 Q2 | J31: 0 | L31: 0.011 | M31: 0 | N31: 0
B32: 2020 Q1 | C32: 0.0218 | D32: 0.0288 | F32: 2017-05-01 | G32: 2017 | H32: Q2 | I32: 2017 Q2 | J32: 0 | L32: 0.011 | M32: 0 | N32: 0
B33: 2020 Q2 | C33: 0.0218 | D33: 0.0248 | F33: 2017-06-01 | G33: 2017 | H33: Q2 | I33: 2017 Q2 | J33: 0 | L33: 0.011 | M33: 0 | N33: 0
B34: 2020 Q3 | C34: 0.0057 | D34: 0.0248 | F34: 2017-07-01 | G34: 2017 | H34: Q3 | I34: 2017 Q3 | J34: 0 | L34: 0.011 | M34: 0 | N34: 0
B35: 2020 Q4 | C35: 0.0057 | D35: 0.0203 | F35: 2017-08-01 | G35: 2017 | H35: Q3 | I35: 2017 Q3 | J35: 0 | L35: 0.011 | M35: 0 | N35: 0
B36: 2021 Q1 | C36: 0.0057 | D36: 0.0203 | F36: 2017-09-01 | G36: 2017 | H36: Q3 | I36: 2017 Q3 | J36: 0 | L36: 0.011 | M36: 0 | N36: 0
B37: 2021 Q2 | C37: 0.0057 | D37: 0.0229 | F37: 2017-10-01 | G37: 2017 | H37: Q4 | I37: 2017 Q4 | J37: 0 | L37: 0.015 | M37: 0 | N37: 0
B38: 2021 Q3 | C38: 0.0057 | D38: 0.0229 | F38: 2017-11-01 | G38: 2017 | H38: Q4 | I38: 2017 Q4 | J38: 0 | L38: 0.015 | M38: 0 | N38: 0
B39: 2021 Q4 | C39: 0.0057 | D39: 0.0229 | F39: 2017-12-01 | G39: 2017 | H39: Q4 | I39: 2017 Q4 | J39: 0 | L39: 0.015 | M39: 0 | N39: 0
B40: 2022 Q1 | C40: 0.0057 | D40: 0.0272 | F40: 2018-01-01 | G40: =YEAR(F40) -> 2018 | H40: =IF(MONTH(F40)=0,"",IF(MONTH(F40)<4,"Q1",IF(MONTH(F40)<7,"Q2",IF(MONTH(F40)<10,"Q3","Q4")))) -> Q1 | I40: =CONCATENATE(G40," ",H40) -> 2018 Q1 | J40: 0 | L40: 0.015 | M40: =ROUND(J40*L40/12,2) -> 0 | N40: =K40+M40 -> 0
B41: 2022 Q2 | C41: 0.0102 | D41: 0.0331 | F41: 2018-02-01 | G41: =YEAR(F41) -> 2018 | H41: =IF(MONTH(F41)=0,"",IF(MONTH(F41)<4,"Q1",IF(MONTH(F41)<7,"Q2",IF(MONTH(F41)<10,"Q3","Q4")))) -> Q1 | I41: =CONCATENATE(G41," ",H41) -> 2018 Q1 | J41: =J40+K40 -> 0 | L41: 0.015 | M41: =ROUND(J41*L41/12,2) -> 0 | N41: =N40+K41+M41 -> 0
B42: 2022 Q3 | C42: 0.022 | D42: 0.0466 | F42: 2018-03-01 | G42: 2018 | H42: Q1 | I42: 2018 Q1 | J42: =J41+K41 -> 0 | L42: 0.015 | M42: 0 | N42: =N41+K42+M42 -> 0
B43: 2022 Q4 | C43: 0.0387 | D43: 0.0501 | F43: 2018-04-01 | G43: 2018 | H43: Q2 | I43: 2018 Q2 | J43: 0 | L43: 0.0189 | M43: 0 | N43: 0
B44: 2023 Q1 | C44: 0.0473 | D44: 0.0501 | F44: 2018-05-01 | G44: 2018 | H44: Q2 | I44: 2018 Q2 | J44: 0 | L44: 0.0189 | M44: 0 | N44: 0
B45: 2023 Q2 | C45: 0.0498 | D45: 0.0501 | F45: 2018-06-01 | G45: 2018 | H45: Q2 | I45: 2018 Q2 | J45: 0 | L45: 0.0189 | M45: 0 | N45: 0
B46: 2023 Q3 | C46: 0.0498 | D46: 0.0501 | F46: 2018-07-01 | G46: 2018 | H46: Q3 | I46: 2018 Q3 | J46: 0 | L46: 0.0189 | M46: 0 | N46: 0
B47: 2023 Q4 | C47: 0.0549 | D47: 0.0548 | F47: 2018-08-01 | G47: 2018 | H47: Q3 | I47: 2018 Q3 | J47: 0 | L47: 0.0189 | M47: 0 | N47: 0
B48: 2024 Q1 | C48: 0.0549 | D48: 0.0548 | F48: 2018-09-01 | G48: 2018 | H48: Q3 | I48: 2018 Q3 | J48: 0 | L48: 0.0189 | M48: 0 | N48: 0
B49: 2024 Q2 | C49: 0.0549 | D49: 0.0598 | F49: 2018-10-01 | G49: 2018 | H49: Q4 | I49: 2018 Q4 | J49: 0 | L49: 0.0217 | M49: 0 | N49: 0
B50: 2024 Q3 | C50: 0.052 | D50: 0.0598 | F50: 2018-11-01 | G50: 2018 | H50: Q4 | I50: 2018 Q4 | J50: 0 | L50: 0.0217 | M50: 0 | N50: 0
B51: 2024 Q4 | C51: 0.044 | D51: 0.0455 | F51: 2018-12-01 | G51: 2018 | H51: Q4 | I51: 2018 Q4 | J51: 0 | L51: 0.0217 | M51: 0 | N51: 0
B52: 2025 Q1 | C52: 0.0364 | D52: 0.0423 | F52: 2019-01-01 | G52: 2019 | H52: Q1 | I52: 2019 Q1 | J52: 0 | L52: 0.0245 | M52: 0 | N52: 0
B53: 2025 Q2 | C53: 0.0316 | D53: 0.0423 | F53: 2019-02-01 | G53: 2019 | H53: Q1 | I53: 2019 Q1 | J53: 0 | L53: 0.0245 | M53: 0 | N53: 0
B54: 2025 Q3 | C54: 0.0291 | D54: 0.0423 | F54: 2019-03-01 | G54: 2019 | H54: Q1 | I54: 2019 Q1 | J54: 0 | L54: 0.0245 | M54: 0 | N54: 0
B55: 2025 Q4 | C55: 0.0291 | D55: 0.0423 | F55: 2019-04-01 | G55: 2019 | H55: Q2 | I55: 2019 Q2 | J55: 0 | L55: 0.0218 | M55: 0 | N55: 0
B56: 2026 Q1 | C56: 0.0255 | D56: 0.0423 | F56: 2019-05-01 | G56: 2019 | H56: Q2 | I56: 2019 Q2 | J56: 0 | L56: 0.0218 | M56: 0 | N56: 0
B57: 2026 Q2 | C57: 0.0255 | D57: 0.0423 | F57: 2019-06-01 | G57: 2019 | H57: Q2 | I57: 2019 Q2 | J57: 0 | L57: 0.0218 | M57: 0 | N57: 0
B58: 2026 Q3 | C58: 0.0255 | D58: 0.0423 | F58: 2019-07-01 | G58: 2019 | H58: Q3 | I58: 2019 Q3 | J58: 0 | L58: 0.0218 | M58: 0 | N58: 0
B59: 2026 Q4 | C59: 0.0255 | D59: 0.0423 | F59: 2019-08-01 | G59: 2019 | H59: Q3 | I59: 2019 Q3 | J59: 0 | L59: 0.0218 | M59: 0 | N59: 0
F60: 2019-09-01 | G60: 2019 | H60: Q3 | I60: 2019 Q3 | J60: 0 | L60: 0.0218 | M60: 0 | N60: 0
F61: 2019-10-01 | G61: 2019 | H61: Q4 | I61: 2019 Q4 | J61: 0 | L61: 0.0218 | M61: 0 | N61: 0
F62: 2019-11-01 | G62: 2019 | H62: Q4 | I62: 2019 Q4 | J62: 0 | L62: 0.0218 | M62: 0 | N62: 0
F63: 2019-12-01 | G63: 2019 | H63: Q4 | I63: 2019 Q4 | J63: 0 | L63: 0.0218 | M63: 0 | N63: 0
F64: 2020-01-01 | G64: =YEAR(F64) -> 2020 | H64: =IF(MONTH(F64)=0,"",IF(MONTH(F64)<4,"Q1",IF(MONTH(F64)<7,"Q2",IF(MONTH(F64)<10,"Q3","Q4")))) -> Q1 | I64: =CONCATENATE(G64," ",H64) -> 2020 Q1 | J64: 0 | L64: 0.0218 | M64: =ROUND(J64*L64/12,2) -> 0 | N64: 0
F65: 2020-02-01 | G65: =YEAR(F65) -> 2020 | H65: =IF(MONTH(F65)=0,"",IF(MONTH(F65)<4,"Q1",IF(MONTH(F65)<7,"Q2",IF(MONTH(F65)<10,"Q3","Q4")))) -> Q1 | I65: =CONCATENATE(G65," ",H65) -> 2020 Q1 | J65: 0 | L65: 0.0218 | M65: =ROUND(J65*L65/12,2) -> 0 | N65: 0
F66: 2020-03-01 | G66: =YEAR(F66) -> 2020 | H66: =IF(MONTH(F66)=0,"",IF(MONTH(F66)<4,"Q1",IF(MONTH(F66)<7,"Q2",IF(MONTH(F66)<10,"Q3","Q4")))) -> Q1 | I66: =CONCATENATE(G66," ",H66) -> 2020 Q1 | J66: 0 | L66: 0.0218 | M66: =ROUND(J66*L66/12,2) -> 0 | N66: 0
F67: 2020-04-01 | G67: =YEAR(F67) -> 2020 | H67: =IF(MONTH(F67)=0,"",IF(MONTH(F67)<4,"Q1",IF(MONTH(F67)<7,"Q2",IF(MONTH(F67)<10,"Q3","Q4")))) -> Q2 | I67: =CONCATENATE(G67," ",H67) -> 2020 Q2 | J67: 0 | L67: 0.0218 | M67: =ROUND(J67*L67/12,2) -> 0 | N67: 0
F68: 2020-05-01 | G68: =YEAR(F68) -> 2020 | H68: =IF(MONTH(F68)=0,"",IF(MONTH(F68)<4,"Q1",IF(MONTH(F68)<7,"Q2",IF(MONTH(F68)<10,"Q3","Q4")))) -> Q2 | I68: =CONCATENATE(G68," ",H68) -> 2020 Q2 | J68: 0 | L68: 0.0218 | M68: =ROUND(J68*L68/12,2) -> 0 | N68: 0
F69: 2020-06-01 | G69: =YEAR(F69) -> 2020 | H69: =IF(MONTH(F69)=0,"",IF(MONTH(F69)<4,"Q1",IF(MONTH(F69)<7,"Q2",IF(MONTH(F69)<10,"Q3","Q4")))) -> Q2 | I69: =CONCATENATE(G69," ",H69) -> 2020 Q2 | J69: 0 | L69: 0.0218 | M69: =ROUND(J69*L69/12,2) -> 0 | N69: 0
F70: 2020-07-01 | G70: =YEAR(F70) -> 2020 | H70: =IF(MONTH(F70)=0,"",IF(MONTH(F70)<4,"Q1",IF(MONTH(F70)<7,"Q2",IF(MONTH(F70)<10,"Q3","Q4")))) -> Q3 | I70: =CONCATENATE(G70," ",H70) -> 2020 Q3 | J70: 0 | L70: 0.0057 | M70: =ROUND(J70*L70/12,2) -> 0 | N70: 0
F71: 2020-08-01 | G71: =YEAR(F71) -> 2020 | H71: =IF(MONTH(F71)=0,"",IF(MONTH(F71)<4,"Q1",IF(MONTH(F71)<7,"Q2",IF(MONTH(F71)<10,"Q3","Q4")))) -> Q3 | I71: =CONCATENATE(G71," ",H71) -> 2020 Q3 | J71: 0 | L71: 0.0057 | M71: =ROUND(J71*L71/12,2) -> 0 | N71: 0
F72: 2020-09-01 | G72: =YEAR(F72) -> 2020 | H72: =IF(MONTH(F72)=0,"",IF(MONTH(F72)<4,"Q1",IF(MONTH(F72)<7,"Q2",IF(MONTH(F72)<10,"Q3","Q4")))) -> Q3 | I72: =CONCATENATE(G72," ",H72) -> 2020 Q3 | J72: 0 | L72: 0.0057 | M72: =ROUND(J72*L72/12,2) -> 0 | N72: 0
F73: 2020-10-01 | G73: =YEAR(F73) -> 2020 | H73: =IF(MONTH(F73)=0,"",IF(MONTH(F73)<4,"Q1",IF(MONTH(F73)<7,"Q2",IF(MONTH(F73)<10,"Q3","Q4")))) -> Q4 | I73: =CONCATENATE(G73," ",H73) -> 2020 Q4 | J73: 0 | L73: 0.0057 | M73: =ROUND(J73*L73/12,2) -> 0 | N73: 0
F74: 2020-11-01 | G74: =YEAR(F74) -> 2020 | H74: =IF(MONTH(F74)=0,"",IF(MONTH(F74)<4,"Q1",IF(MONTH(F74)<7,"Q2",IF(MONTH(F74)<10,"Q3","Q4")))) -> Q4 | I74: =CONCATENATE(G74," ",H74) -> 2020 Q4 | J74: 0 | L74: 0.0057 | M74: =ROUND(J74*L74/12,2) -> 0 | N74: 0
F75: 2020-12-01 | G75: =YEAR(F75) -> 2020 | H75: =IF(MONTH(F75)=0,"",IF(MONTH(F75)<4,"Q1",IF(MONTH(F75)<7,"Q2",IF(MONTH(F75)<10,"Q3","Q4")))) -> Q4 | I75: =CONCATENATE(G75," ",H75) -> 2020 Q4 | J75: 0 | L75: 0.0057 | M75: =ROUND(J75*L75/12,2) -> 0 | N75: 0
F76: 2021-01-01 | G76: =YEAR(F76) -> 2021 | H76: =IF(MONTH(F76)=0,"",IF(MONTH(F76)<4,"Q1",IF(MONTH(F76)<7,"Q2",IF(MONTH(F76)<10,"Q3","Q4")))) -> Q1 | I76: =CONCATENATE(G76," ",H76) -> 2021 Q1 | J76: 0 | L76: 0.0057 | M76: =ROUND(J76*L76/12,2) -> 0 | N76: 0
F77: 2021-02-01 | G77: =YEAR(F77) -> 2021 | H77: =IF(MONTH(F77)=0,"",IF(MONTH(F77)<4,"Q1",IF(MONTH(F77)<7,"Q2",IF(MONTH(F77)<10,"Q3","Q4")))) -> Q1 | I77: =CONCATENATE(G77," ",H77) -> 2021 Q1 | J77: 0 | L77: 0.0057 | M77: =ROUND(J77*L77/12,2) -> 0 | N77: 0
F78: 2021-03-01 | G78: =YEAR(F78) -> 2021 | H78: =IF(MONTH(F78)=0,"",IF(MONTH(F78)<4,"Q1",IF(MONTH(F78)<7,"Q2",IF(MONTH(F78)<10,"Q3","Q4")))) -> Q1 | I78: =CONCATENATE(G78," ",H78) -> 2021 Q1 | J78: 0 | L78: 0.0057 | M78: =ROUND(J78*L78/12,2) -> 0 | N78: 0
F79: 2021-04-01 | G79: =YEAR(F79) -> 2021 | H79: =IF(MONTH(F79)=0,"",IF(MONTH(F79)<4,"Q1",IF(MONTH(F79)<7,"Q2",IF(MONTH(F79)<10,"Q3","Q4")))) -> Q2 | I79: =CONCATENATE(G79," ",H79) -> 2021 Q2 | J79: 0 | L79: 0.0057 | M79: =ROUND(J79*L79/12,2) -> 0 | N79: 0
F80: 2021-05-01 | G80: =YEAR(F80) -> 2021 | H80: =IF(MONTH(F80)=0,"",IF(MONTH(F80)<4,"Q1",IF(MONTH(F80)<7,"Q2",IF(MONTH(F80)<10,"Q3","Q4")))) -> Q2 | I80: =CONCATENATE(G80," ",H80) -> 2021 Q2 | J80: 0 | L80: 0.0057 | M80: =ROUND(J80*L80/12,2) -> 0 | N80: 0
F81: 2021-06-01 | G81: =YEAR(F81) -> 2021 | H81: =IF(MONTH(F81)=0,"",IF(MONTH(F81)<4,"Q1",IF(MONTH(F81)<7,"Q2",IF(MONTH(F81)<10,"Q3","Q4")))) -> Q2 | I81: =CONCATENATE(G81," ",H81) -> 2021 Q2 | J81: 0 | L81: 0.0057 | M81: =ROUND(J81*L81/12,2) -> 0 | N81: 0
F82: 2021-07-01 | G82: =YEAR(F82) -> 2021 | H82: =IF(MONTH(F82)=0,"",IF(MONTH(F82)<4,"Q1",IF(MONTH(F82)<7,"Q2",IF(MONTH(F82)<10,"Q3","Q4")))) -> Q3 | I82: =CONCATENATE(G82," ",H82) -> 2021 Q3 | J82: 0 | L82: 0.0057 | M82: =ROUND(J82*L82/12,2) -> 0 | N82: 0
F83: 2021-08-01 | G83: =YEAR(F83) -> 2021 | H83: =IF(MONTH(F83)=0,"",IF(MONTH(F83)<4,"Q1",IF(MONTH(F83)<7,"Q2",IF(MONTH(F83)<10,"Q3","Q4")))) -> Q3 | I83: =CONCATENATE(G83," ",H83) -> 2021 Q3 | J83: 0 | L83: 0.0057 | M83: =ROUND(J83*L83/12,2) -> 0 | N83: 0
F84: 2021-09-01 | G84: =YEAR(F84) -> 2021 | H84: =IF(MONTH(F84)=0,"",IF(MONTH(F84)<4,"Q1",IF(MONTH(F84)<7,"Q2",IF(MONTH(F84)<10,"Q3","Q4")))) -> Q3 | I84: =CONCATENATE(G84," ",H84) -> 2021 Q3 | J84: =J83+K83 -> 0 | L84: 0.0057 | M84: =ROUND(J84*L84/12,2) -> 0 | N84: =N83+K84+M84 -> 0
F85: 2021-10-01 | G85: 2021 | H85: Q4 | I85: 2021 Q4 | J85: 0 | L85: 0.0057 | M85: 0 | N85: 0
F86: 2021-11-01 | G86: 2021 | H86: Q4 | I86: 2021 Q4 | J86: 0 | L86: 0.0057 | M86: 0 | N86: 0
F87: 2021-12-01 | G87: 2021 | H87: Q4 | I87: 2021 Q4 | J87: 0 | L87: 0.0057 | M87: 0 | N87: 0
F88: 2022-01-01 | G88: 2022 | H88: Q1 | I88: 2022 Q1 | J88: 0 | L88: 0.0057 | M88: 0 | N88: 0
F89: 2022-02-01 | G89: 2022 | H89: Q1 | I89: 2022 Q1 | J89: 0 | L89: 0.0057 | M89: 0 | N89: 0
F90: 2022-03-01 | G90: 2022 | H90: Q1 | I90: 2022 Q1 | J90: 0 | L90: 0.0057 | M90: 0 | N90: 0
F91: 2022-04-01 | G91: 2022 | H91: Q2 | I91: 2022 Q2 | J91: 0 | L91: 0.0102 | M91: 0 | N91: 0
F92: 2022-05-01 | G92: 2022 | H92: Q2 | I92: 2022 Q2 | J92: 0 | L92: 0.0102 | M92: 0 | N92: 0
F93: 2022-06-01 | G93: 2022 | H93: Q2 | I93: 2022 Q2 | J93: 0 | L93: 0.0102 | M93: 0 | N93: 0
F94: 2022-07-01 | G94: 2022 | H94: Q3 | I94: 2022 Q3 | J94: 0 | L94: 0.022 | M94: 0 | N94: 0
F95: 2022-08-01 | G95: 2022 | H95: Q3 | I95: 2022 Q3 | J95: 0 | L95: 0.022 | M95: 0 | N95: 0
F96: 2022-09-01 | G96: 2022 | H96: Q3 | I96: 2022 Q3 | J96: 0 | L96: 0.022 | M96: 0 | N96: 0
F97: 2022-10-01 | G97: 2022 | H97: Q4 | I97: 2022 Q4 | J97: 0 | L97: 0.0387 | M97: 0 | N97: 0
F98: 2022-11-01 | G98: 2022 | H98: Q4 | I98: 2022 Q4 | J98: 0 | L98: 0.0387 | M98: 0 | N98: 0
F99: 2022-12-01 | G99: 2022 | H99: Q4 | I99: 2022 Q4 | J99: 0 | L99: 0.0387 | M99: 0 | N99: 0
F100: 2023-01-01 | G100: 2023 | H100: Q1 | I100: 2023 Q1 | J100: 0 | L100: 0.0473 | M100: 0 | N100: 0
F101: 2023-02-01 | G101: 2023 | H101: Q1 | I101: 2023 Q1 | J101: 0 | L101: 0.0473 | M101: 0 | N101: 0
F102: 2023-03-01 | G102: 2023 | H102: Q1 | I102: 2023 Q1 | J102: 0 | L102: 0.0473 | M102: 0 | N102: 0
F103: 2023-04-01 | G103: 2023 | H103: Q2 | I103: 2023 Q2 | J103: 0 | L103: 0.0498 | M103: 0 | N103: 0
F104: 2023-05-01 | G104: 2023 | H104: Q2 | I104: 2023 Q2 | J104: 0 | L104: 0.0498 | M104: 0 | N104: 0
F105: 2023-06-01 | G105: 2023 | H105: Q2 | I105: 2023 Q2 | J105: 0 | L105: 0.0498 | M105: 0 | N105: 0
F106: 2023-07-01 | G106: 2023 | H106: Q3 | I106: 2023 Q3 | J106: 0 | L106: 0.0498 | M106: 0 | N106: 0
F107: 2023-08-01 | G107: 2023 | H107: Q3 | I107: 2023 Q3 | J107: 0 | L107: 0.0498 | M107: 0 | N107: 0
F108: 2023-09-01 | G108: 2023 | H108: Q3 | I108: 2023 Q3 | J108: 0 | L108: 0.0498 | M108: 0 | N108: 0
F109: 2023-10-01 | G109: 2023 | H109: Q4 | I109: 2023 Q4 | J109: 0 | L109: 0.0549 | M109: 0 | N109: 0
F110: 2023-11-01 | G110: 2023 | H110: Q4 | I110: 2023 Q4 | J110: 0 | L110: 0.0549 | M110: 0 | N110: 0
F111: 2023-12-01 | G111: 2023 | H111: Q4 | I111: 2023 Q4 | J111: 0 | L111: 0.0549 | M111: 0 | N111: 0
F112: 2024-01-01 | G112: 2024 | H112: Q1 | I112: 2024 Q1 | J112: 0 | L112: 0.0549 | M112: 0 | N112: 0
F113: 2024-02-01 | G113: 2024 | H113: Q1 | I113: 2024 Q1 | J113: 0 | L113: 0.0549 | M113: 0 | N113: 0
F114: 2024-03-01 | G114: 2024 | H114: Q1 | I114: 2024 Q1 | J114: 0 | L114: 0.0549 | M114: 0 | N114: 0
F115: 2024-04-01 | G115: 2024 | H115: Q2 | I115: 2024 Q2 | J115: 0 | L115: 0.0549 | M115: 0 | N115: 0
F116: 2024-05-01 | G116: 2024 | H116: Q2 | I116: 2024 Q2 | J116: 0 | L116: 0.0549 | M116: 0 | N116: 0
F117: 2024-06-01 | G117: 2024 | H117: Q2 | I117: 2024 Q2 | J117: 0 | L117: 0.0549 | M117: 0 | N117: 0
F118: 2024-07-01 | G118: 2024 | H118: Q3 | I118: 2024 Q3 | J118: 0 | L118: 0.052 | M118: 0 | N118: 0
F119: 2024-08-01 | G119: 2024 | H119: Q3 | I119: 2024 Q3 | J119: 0 | L119: 0.052 | M119: 0 | N119: 0
F120: 2024-09-01 | G120: 2024 | H120: Q3 | I120: 2024 Q3 | J120: 0 | L120: 0.052 | M120: 0 | N120: 0
F121: 2024-10-01 | G121: 2024 | H121: Q4 | I121: 2024 Q4 | J121: 0 | L121: 0.044 | M121: 0 | N121: 0
F122: 2024-11-01 | G122: 2024 | H122: Q4 | I122: 2024 Q4 | J122: 0 | L122: 0.044 | M122: 0 | N122: 0
F123: 2024-12-01 | G123: 2024 | H123: Q4 | I123: 2024 Q4 | J123: 0 | L123: 0.044 | M123: 0 | N123: 0
F124: 2025-01-01 | G124: 2025 | H124: Q1 | I124: 2025 Q1 | J124: 0 | L124: 0.044 | M124: 0 | N124: 0
F125: 2025-02-01 | G125: 2025 | H125: Q1 | I125: 2025 Q1 | J125: 0 | L125: 0.044 | M125: 0 | N125: 0
F126: 2025-03-01 | G126: 2025 | H126: Q1 | I126: 2025 Q1 | J126: 0 | L126: 0.044 | M126: 0 | N126: 0
F127: 2025-04-01 | G127: 2025 | H127: Q2 | I127: 2025 Q2 | J127: 0 | L127: 0.044 | M127: 0 | N127: 0
F128: 2025-05-01 | G128: 2025 | H128: Q2 | I128: 2025 Q2 | J128: 0 | L128: 0.044 | M128: 0 | N128: 0
F129: 2025-06-01 | G129: 2025 | H129: Q2 | I129: 2025 Q2 | J129: 0 | L129: 0.044 | M129: 0 | N129: 0
F130: 2025-07-01 | G130: 2025 | H130: Q3 | I130: 2025 Q3 | J130: 0 | L130: 0.044 | M130: 0 | N130: 0
F131: 2025-08-01 | G131: 2025 | H131: Q3 | I131: 2025 Q3 | J131: 0 | L131: 0.044 | M131: 0 | N131: 0
F132: 2025-09-01 | G132: 2025 | H132: Q3 | I132: 2025 Q3 | J132: 0 | L132: 0.044 | M132: 0 | N132: 0
F133: 2025-10-01 | G133: 2025 | H133: Q4 | I133: 2025 Q4 | J133: 0 | L133: 0.044 | M133: 0 | N133: 0
F134: 2025-11-01 | G134: 2025 | H134: Q4 | I134: 2025 Q4 | J134: 0 | L134: 0.044 | M134: 0 | N134: 0
F135: 2025-12-01 | G135: 2025 | H135: Q4 | I135: 2025 Q4 | J135: 0 | L135: 0.044 | M135: 0 | N135: 0
F136: 2026-01-01 | G136: 2026 | H136: Q1 | I136: 2026 Q1 | J136: 0 | L136: 0.044 | M136: 0 | N136: 0
F137: 2026-02-01 | G137: 2026 | H137: Q1 | I137: 2026 Q1 | J137: 0 | L137: 0.044 | M137: 0 | N137: 0
F138: 2026-03-01 | G138: 2026 | H138: Q1 | I138: 2026 Q1 | J138: 0 | L138: 0.044 | M138: 0 | N138: 0
F139: 2026-04-01 | G139: 2026 | H139: Q2 | I139: 2026 Q2 | J139: 0 | L139: 0.044 | M139: 0 | N139: 0
F140: 2026-05-01 | G140: 2026 | H140: Q2 | I140: 2026 Q2 | J140: 0 | L140: 0.044 | M140: 0 | N140: 0
F141: 2026-06-01 | G141: 2026 | H141: Q2 | I141: 2026 Q2 | J141: 0 | L141: 0.044 | M141: 0 | N141: 0
F142: 2026-07-01 | G142: 2026 | H142: Q3 | I142: 2026 Q3 | J142: 0 | L142: 0.044 | M142: 0 | N142: 0
F143: 2026-08-01 | G143: 2026 | H143: Q3 | I143: 2026 Q3 | J143: 0 | L143: 0.044 | M143: 0 | N143: 0
F144: 2026-09-01 | G144: 2026 | H144: Q3 | I144: 2026 Q3 | J144: 0 | L144: 0.044 | M144: 0 | N144: 0
F145: 2026-10-01 | G145: 2026 | H145: Q4 | I145: 2026 Q4 | J145: 0 | L145: 0.044 | M145: 0 | N145: 0
F146: 2026-11-01 | G146: 2026 | H146: Q4 | I146: 2026 Q4 | J146: 0 | L146: 0.044 | M146: 0 | N146: 0
F147: 2026-12-01 | G147: 2026 | H147: Q4 | I147: 2026 Q4 | J147: 0 | L147: 0.044 | M147: 0 | N147: 0
F149: Total Funding Adder Revenues Collected | K149: =SUM(K16:K39) -> 0 | M149: =SUM(M16:M39) -> 0 | N149: =K149+M149 -> 0
B151: NOTE: Funding adder revenues are up to December 2014 actuals

Sheet 5. MIST Meters_IRR
B4: MIST Meters True-up Model
B9: Sheet 5: Revenue Requirement Calculations
B14: Return on Rate Base | E14: 2016 | H14: 2017 | K14: 2018 | N14: 2019 | Q14: 2020 | T14: 2021 | W14: 2022 | Z14: 2023 | AC14: 2024 | AF14: 2025 | AI14: 2026
B15: Average Fixed Assets | E15: ='2. MIST Meters Assets_Rate Base'!E268-'2. MIST Meters Assets_Rate Base'!E269 -> 992958.825 | H15: ='2. MIST Meters Assets_Rate Base'!F268-'2. MIST Meters Assets_Rate Base'!F269 -> 2091439.76 | K15: ='2. MIST Meters Assets_Rate Base'!G268-'2. MIST Meters Assets_Rate Base'!G269 -> 2771613.65 | N15: ='2. MIST Meters Assets_Rate Base'!H268-'2. MIST Meters Assets_Rate Base'!H269 -> 3422583.28 | Q15: ='2. MIST Meters Assets_Rate Base'!I268-'2. MIST Meters Assets_Rate Base'!I269 -> 4443036.45 | T15: ='2. MIST Meters Assets_Rate Base'!J268-'2. MIST Meters Assets_Rate Base'!J269 -> 6489101.56 | W15: ='2. MIST Meters Assets_Rate Base'!K268-'2. MIST Meters Assets_Rate Base'!K269 -> 7879956.475 | Z15: ='2. MIST Meters Assets_Rate Base'!L268-'2. MIST Meters Assets_Rate Base'!L269 -> 8119312.685 | AC15: ='2. MIST Meters Assets_Rate Base'!M268-'2. MIST Meters Assets_Rate Base'!M269 -> 7779484.56 | AF15: ='2. MIST Meters Assets_Rate Base'!N268-'2. MIST Meters Assets_Rate Base'!N269 -> 7426531.9 | AI15: ='2. MIST Meters Assets_Rate Base'!O268-'2. MIST Meters Assets_Rate Base'!O269 -> 7073579.24 | AJ15: B
B16: Depreciation Expense | E16: =-'2. MIST Meters Assets_Rate Base'!E269 -> 0 | H16: =-'2. MIST Meters Assets_Rate Base'!F269 -> 170040.85 | K16: =-'2. MIST Meters Assets_Rate Base'!G269 -> 162650.91 | N16: =-'2. MIST Meters Assets_Rate Base'!H269 -> 111007.86 | Q16: =-'2. MIST Meters Assets_Rate Base'!I269 -> 113190.43 | T16: =-'2. MIST Meters Assets_Rate Base'!J269 -> 200605.92 | W16: =-'2. MIST Meters Assets_Rate Base'!K269 -> 324844.53 | Z16: =-'2. MIST Meters Assets_Rate Base'!L269 -> 352399.01 | AC16: =-'2. MIST Meters Assets_Rate Base'!M269 -> 352952.66 | AF16: =-'2. MIST Meters Assets_Rate Base'!N269 -> 352952.66 | AI16: =-'2. MIST Meters Assets_Rate Base'!O269 -> 352952.66 | AJ16: C
B17: Net Fixed Assets to be included in Rate Base | E17: =E15-E16 -> 992958.825 | H17: =H15-H16 -> 1921398.91 | K17: =K15-K16 -> 2608962.74 | N17: =N15-N16 -> 3311575.42 | Q17: =Q15-Q16 -> 4329846.02 | T17: =T15-T16 -> 6288495.64 | W17: =W15-W16 -> 7555111.945 | Z17: =Z15-Z16 -> 7766913.675 | AC17: =AC15-AC16 -> 7426531.9 | AF17: =AF15-AF16 -> 7073579.24 | AI17: =AI15-AI16 -> 6720626.58 | AJ17: D = B - C
B19: Deemed ShortTerm Debt % | C19: ='1. Cost of Service_parameters'!G14 -> 0.04 | D19: E | E19: =E17*C19 -> 39718.353 | F19: ='1. Cost of Service_parameters'!H14 -> 0.04 | H19: =H17*F19 -> 76855.9564 | I19: ='1. Cost of Service_parameters'!I14 -> 0.04 | K19: =K17*I19 -> 104358.5096 | L19: ='1. Cost of Service_parameters'!J14 -> 0.04 | N19: =N17*L19 -> 132463.0168 | O19: ='1. Cost of Service_parameters'!K14 -> 0.04 | Q19: =Q17*O19 -> 173193.8408 | R19: ='1. Cost of Service_parameters'!L14 -> 0.04 | T19: =T17*R19 -> 251539.8256 | U19: ='1. Cost of Service_parameters'!M14 -> 0.04 | W19: =W17*U19 -> 302204.4778 | X19: ='1. Cost of Service_parameters'!N14 -> 0.04 | Z19: =Z17*X19 -> 310676.547 | AA19: ='1. Cost of Service_parameters'!O14 -> 0.04 | AC19: =AC17*AA19 -> 297061.276 | AD19: ='1. Cost of Service_parameters'!P14 -> 0.04 | AF19: =AF17*AD19 -> 282943.1696 | AG19: ='1. Cost of Service_parameters'!Q14 -> 0.04 | AI19: =AI17*AG19 -> 268825.0632 | AJ19: G = D * E
B20: Deemed Long Term Debt % | C20: ='1. Cost of Service_parameters'!G15 -> 0.56 | D20: F | E20: =E17*C20 -> 556056.942 | F20: ='1. Cost of Service_parameters'!H15 -> 0.56 | H20: =H17*F20 -> 1075983.39 | I20: ='1. Cost of Service_parameters'!I15 -> 0.56 | K20: =K17*I20 -> 1461019.134 | L20: ='1. Cost of Service_parameters'!J15 -> 0.56 | N20: =N17*L20 -> 1854482.235 | O20: ='1. Cost of Service_parameters'!K15 -> 0.56 | Q20: =Q17*O20 -> 2424713.771 | R20: ='1. Cost of Service_parameters'!L15 -> 0.56 | T20: =T17*R20 -> 3521557.558 | U20: ='1. Cost of Service_parameters'!M15 -> 0.56 | W20: =W17*U20 -> 4230862.689 | X20: ='1. Cost of Service_parameters'!N15 -> 0.56 | Z20: =Z17*X20 -> 4349471.658 | AA20: ='1. Cost of Service_parameters'!O15 -> 0.56 | AC20: =AC17*AA20 -> 4158857.864 | AD20: ='1. Cost of Service_parameters'!P15 -> 0.56 | AF20: =AF17*AD20 -> 3961204.374 | AG20: ='1. Cost of Service_parameters'!Q15 -> 0.56 | AI20: =AI17*AG20 -> 3763550.885 | AJ20: H = D * F
B22: Short Term Interest | C22: ='1. Cost of Service_parameters'!G21 -> 0.0176 | D22: I | E22: =E19*C22 -> 699.0430128 | F22: ='1. Cost of Service_parameters'!H21 -> 0.0176 | H22: =H19*F22 -> 1352.664833 | I22: ='1. Cost of Service_parameters'!I21 -> 0.0176 | K22: =K19*I22 -> 1836.709769 | L22: ='1. Cost of Service_parameters'!J21 -> 0.0176 | N22: =N19*L22 -> 2331.349096 | O22: ='1. Cost of Service_parameters'!K21 -> 0.0176 | Q22: =Q19*O22 -> 3048.211598 | R22: ='1. Cost of Service_parameters'!L21 -> 0.0176 | T22: =T19*R22 -> 4427.100931 | U22: ='1. Cost of Service_parameters'!M21 -> 0.0176 | W22: =W19*U22 -> 5318.798809 | X22: ='1. Cost of Service_parameters'!N21 -> 0.0176 | Z22: =Z19*X22 -> 5467.907227 | AA22: ='1. Cost of Service_parameters'!O21 -> 0.0176 | AC22: =AC19*AA22 -> 5228.278458 | AD22: ='1. Cost of Service_parameters'!P21 -> 0.0176 | AF22: =AF19*AD22 -> 4979.799785 | AG22: ='1. Cost of Service_parameters'!Q21 -> 0.0176 | AI22: =AI19*AG22 -> 4731.321112 | AJ22: K = G * I
B23: Long Term Interest | C23: ='1. Cost of Service_parameters'!G22 -> 0.03882503715 | D23: J | E23: =E20*C23 -> 21588.93143 | F23: ='1. Cost of Service_parameters'!H22 -> 0.03882503715 | H23: =H20*F23 -> 41775.09507 | I23: ='1. Cost of Service_parameters'!I22 -> 0.03882503715 | K23: =K20*I23 -> 56724.12217 | L23: ='1. Cost of Service_parameters'!J22 -> 0.03882503715 | N23: =N20*L23 -> 72000.34167 | O23: ='1. Cost of Service_parameters'!K22 -> 0.03882503715 | Q23: =Q20*O23 -> 94139.60224 | R23: ='1. Cost of Service_parameters'!L22 -> 0.03882503715 | T23: =T20*R23 -> 136724.603 | U23: ='1. Cost of Service_parameters'!M22 -> 0.03882503715 | W23: =W20*U23 -> 164263.4011 | X23: ='1. Cost of Service_parameters'!N22 -> 0.03882503715 | Z23: =Z20*X23 -> 168868.3987 | AA23: ='1. Cost of Service_parameters'!O22 -> 0.03882503715 | AC23: =AC20*AA23 -> 161467.8111 | AD23: ='1. Cost of Service_parameters'!P22 -> 0.03882503715 | AF23: =AF20*AD23 -> 153793.907 | AG23: ='1. Cost of Service_parameters'!Q22 -> 0.03882503715 | AI23: =AI20*AG23 -> 146120.0029 | AJ23: L = H * J
B25: Return on Rate Base - Interest | E25: =SUM(E22:E23) -> 22287.97444 | H25: =SUM(H22:H23) -> 43127.75991 | K25: =SUM(K22:K23) -> 58560.83194 | N25: =SUM(N22:N23) -> 74331.69077 | Q25: =SUM(Q22:Q23) -> 97187.81384 | T25: =SUM(T22:T23) -> 141151.704 | W25: =SUM(W22:W23) -> 169582.1999 | Z25: =SUM(Z22:Z23) -> 174336.3059 | AC25: =SUM(AC22:AC23) -> 166696.0895 | AF25: =SUM(AF22:AF23) -> 158773.7068 | AI25: =SUM(AI22:AI23) -> 150851.324 | AJ25: M = K + L
B28: Deemed Equity % | C28: ='1. Cost of Service_parameters'!G16 -> 0.4 | D28: N | E28: =E17*C28 -> 397183.53 | F28: ='1. Cost of Service_parameters'!H16 -> 0.4 | H28: =H17*F28 -> 768559.564 | I28: ='1. Cost of Service_parameters'!I16 -> 0.4 | K28: =K17*I28 -> 1043585.096 | L28: ='1. Cost of Service_parameters'!J16 -> 0.4 | N28: =N17*L28 -> 1324630.168 | O28: ='1. Cost of Service_parameters'!K16 -> 0.4 | Q28: =Q17*O28 -> 1731938.408 | R28: ='1. Cost of Service_parameters'!L16 -> 0.4 | T28: =T17*R28 -> 2515398.256 | U28: ='1. Cost of Service_parameters'!M16 -> 0.4 | W28: =W17*U28 -> 3022044.778 | X28: ='1. Cost of Service_parameters'!N16 -> 0.4 | Z28: =Z17*X28 -> 3106765.47 | AA28: ='1. Cost of Service_parameters'!O16 -> 0.4 | AC28: =AC17*AA28 -> 2970612.76 | AD28: ='1. Cost of Service_parameters'!P16 -> 0.4 | AF28: =AF17*AD28 -> 2829431.696 | AG28: ='1. Cost of Service_parameters'!Q16 -> 0.4 | AI28: =AI17*AG28 -> 2688250.632 | AJ28: P = D * N
B30: Return on Rate Base -Equity | C30: ='1. Cost of Service_parameters'!G23 -> 0.0878 | D30: O | E30: =E28*C30 -> 34872.71393 | F30: ='1. Cost of Service_parameters'!H23 -> 0.0878 | H30: =H28*F30 -> 67479.52972 | I30: ='1. Cost of Service_parameters'!I23 -> 0.0878 | K30: =K28*I30 -> 91626.77143 | L30: ='1. Cost of Service_parameters'!J23 -> 0.0878 | N30: =N28*L30 -> 116302.5288 | O30: ='1. Cost of Service_parameters'!K23 -> 0.0878 | Q30: =Q28*O30 -> 152064.1922 | R30: ='1. Cost of Service_parameters'!L23 -> 0.0878 | T30: =T28*R30 -> 220851.9669 | U30: ='1. Cost of Service_parameters'!M23 -> 0.0878 | W30: =W28*U30 -> 265335.5315 | X30: ='1. Cost of Service_parameters'!N23 -> 0.0878 | Z30: =Z28*X30 -> 272774.0083 | AA30: ='1. Cost of Service_parameters'!O23 -> 0.0878 | AC30: =AC28*AA30 -> 260819.8003 | AD30: ='1. Cost of Service_parameters'!P23 -> 0.0878 | AF30: =AF28*AD30 -> 248424.1029 | AG30: ='1. Cost of Service_parameters'!Q23 -> 0.0878 | AI30: =AI28*AG30 -> 236028.4055 | AJ30: Q = P * O
B32: Return on Rate Base - Total | E32: =E25+E30 -> 57160.68838 | H32: =H25+H30 -> 110607.2896 | K32: =K25+K30 -> 150187.6034 | N32: =N25+N30 -> 190634.2195 | Q32: =Q25+Q30 -> 249252.0061 | T32: =T25+T30 -> 362003.6708 | W32: =W25+W30 -> 434917.7314 | Z32: =Z25+Z30 -> 447110.3142 | AC32: =AC25+AC30 -> 427515.8899 | AF32: =AF25+AF30 -> 407197.8097 | AI32: =AI25+AI30 -> 386879.7295 | AJ32: R = M + Q
B36: Amortization Expense
B38: Amortization Expense - Incremental | D38: C | E38: =E16 -> 0 | H38: =H16 -> 170040.85 | K38: =K16 -> 162650.91 | N38: =N16 -> 111007.86 | Q38: =Q16 -> 113190.43 | T38: =T16 -> 200605.92 | W38: =W16 -> 324844.53 | Z38: =Z16 -> 352399.01 | AC38: =AC16 -> 352952.66 | AF38: =AF16 -> 352952.66 | AI38: =AI16 -> 352952.66 | AJ38: S
B41: OM&A Expense
B43: OM&A Expense - Incremental | D43: D | E43: 31250.88 | H43: 44277.59 | AJ43: S
B46: Grossed up PIL's
B48: Regulatory Taxable Income | D48: O | E48: =E30 -> 34872.71393 | H48: =H30 -> 67479.52972 | K48: =K30 -> 91626.77143 | N48: =N30 -> 116302.5288 | Q48: =Q30 -> 152064.1922 | T48: =T30 -> 220851.9669 | W48: =W30 -> 265335.5315 | Z48: =Z30 -> 272774.0083 | AC48: =AC30 -> 260819.8003 | AF48: =AF30 -> 248424.1029 | AI48: =AI30 -> 236028.4055 | AJ48: T
B50: Add Back Amortization Expense | D50: S | E50: =E38 -> 0 | H50: =H38 -> 170040.85 | K50: =K38 -> 162650.91 | N50: =N38 -> 111007.86 | Q50: =Q38 -> 113190.43 | T50: =T38 -> 200605.92 | W50: =W38 -> 324844.53 | Z50: =Z38 -> 352399.01 | AC50: =AC38 -> 352952.66 | AF50: =AF38 -> 352952.66 | AI50: =AI38 -> 352952.66 | AJ50: U
B52: Deduct CCA | E52: ='3. UCC_Calculations'!D88 -> 79436.706 | H52: =+'3. UCC_Calculations'!E88 -> 154158.6103 | K52: =+'3. UCC_Calculations'!F88 -> 210138.6983 | N52: =+'3. UCC_Calculations'!G88 -> 260482.9676 | Q52: =+'3. UCC_Calculations'!H88 -> 330073.9098 | T52: =+'3. UCC_Calculations'!I88 -> 472911.8206 | W52: =+'3. UCC_Calculations'!J88 -> 557426.1974 | Z52: =+'3. UCC_Calculations'!K88 -> 556865.9816 | AC52: =+'3. UCC_Calculations'!L88 -> 513300.2279 | AF52: =+'3. UCC_Calculations'!M88 -> 472236.2096 | AI52: =+'3. UCC_Calculations'!N88 -> 434457.3129 | AJ52: V
B54: Incremental Taxable Income | E54: =E48+E50-E52 -> -44563.99207 | H54: =H48+H50-H52 -> 83361.7694 | K54: =K48+K50-K52 -> 44138.98313 | N54: =N48+N50-N52 -> -33172.57888 | Q54: =Q48+Q50-Q52 -> -64819.2876 | T54: =T48+T50-T52 -> -51453.93376 | W54: =W48+W50-W52 -> 32753.86412 | Z54: =Z48+Z50-Z52 -> 68307.03667 | AC54: =AC48+AC50-AC52 -> 100472.2325 | AF54: =AF48+AF50-AF52 -> 129140.5533 | AI54: =AI48+AI50-AI52 -> 154523.7526 | AJ54: W = T + U - V
B56: Current Tax Rate (F1.1 Z-Factor Tax Changes) | C56: 0.265 | D56: X | F56: 0.265 | I56: 0.265 | L56: 0.265 | O56: 0.265 | R56: 0.265 | U56: 0.265 | X56: 0.265 | AA56: 0.265 | AD56: 0.265 | AG56: 0.265
B58: PIL's Before Gross Up | E58: =E54*C56 -> -11809.4579 | H58: =H54*F56 -> 22090.86889 | K58: =K54*I56 -> 11696.83053 | N58: =N54*L56 -> -8790.733403 | Q58: =Q54*O56 -> -17177.11121 | T58: =T54*R56 -> -13635.29245 | W58: =W54*U56 -> 8679.773993 | Z58: =Z54*X56 -> 18101.36472 | AC58: =AC54*AA56 -> 26625.1416 | AF58: =AF54*AD56 -> 34222.24662 | AI58: =AI54*AG56 -> 40948.79445 | AJ58: Y = W * X
B60: Incremental Grossed Up PIL's | E60: =E58/(1-C56) -> -16067.28966 | H60: =H58/(1-F56) -> 30055.60393 | K60: =K58/(1-I56) -> 15914.05514 | N60: =N58/(1-L56) -> -11960.1815 | Q60: =Q58/(1-O56) -> -23370.21934 | T60: =T58/(1-R56) -> -18551.41829 | W60: =W58/(1-U56) -> 11809.21632 | Z60: =Z58/(1-X56) -> 24627.7071 | AC60: =AC58/(1-AA56) -> 36224.68245 | AF60: =AF58/(1-AD56) -> 46560.87975 | AI60: =AI58/(1-AG56) -> 55712.6455 | AJ60: Z = Y / ( 1 - X )
B63: Incremental Revenue Requirement
B64: Return on Rate Base - Total | D64: Q | E64: =E32 -> 57160.68838 | H64: =H32 -> 110607.2896 | K64: =K32 -> 150187.6034 | N64: =N32 -> 190634.2195 | Q64: =Q32 -> 249252.0061 | T64: =T32 -> 362003.6708 | W64: =W32 -> 434917.7314 | Z64: =Z32 -> 447110.3142 | AC64: =AC32 -> 427515.8899 | AF64: =AF32 -> 407197.8097 | AI64: =AI32 -> 386879.7295 | AJ64: AF
B65: Amortization Expense - Total | D65: S | E65: =E38 -> 0 | H65: =H38 -> 170040.85 | K65: =K38 -> 162650.91 | N65: =N38 -> 111007.86 | Q65: =Q38 -> 113190.43 | T65: =T38 -> 200605.92 | W65: =W38 -> 324844.53 | Z65: =Z38 -> 352399.01 | AC65: =AC38 -> 352952.66 | AF65: =AF38 -> 352952.66 | AI65: =AI38 -> 352952.66 | AJ65: AG
B66: Incremental Grossed Up PIL's | D66: Z | E66: =E60 -> -16067.28966 | H66: =H60 -> 30055.60393 | K66: =K60 -> 15914.05514 | N66: =N60 -> -11960.1815 | Q66: =Q60 -> -23370.21934 | T66: =T60 -> -18551.41829 | W66: =W60 -> 11809.21632 | Z66: =Z60 -> 24627.7071 | AC66: =AC60 -> 36224.68245 | AF66: =AF60 -> 46560.87975 | AI66: =AI60 -> 55712.6455 | AJ66: AH
B67: OM&A | D67: D | E67: =E43 -> 31250.88 | H67: =H43 -> 44277.59 | K67: =K43 -> 0 | N67: =N43 -> 0 | Q67: =Q43 -> 0 | T67: =T43 -> 0 | W67: =W43 -> 0 | Z67: =Z43 -> 0 | AC67: =AC43 -> 0 | AF67: =AF43 -> 0 | AI67: =AI43 -> 0
B69: Incremental Revenue Requirement | E69: =SUM(E64:E67) -> 72344.27872 | H69: =SUM(H64:H67) -> 354981.3336 | K69: =SUM(K64:K67) -> 328752.5685 | N69: =SUM(N64:N67) -> 289681.898 | Q69: =SUM(Q64:Q67) -> 339072.2167 | T69: =SUM(T64:T67) -> 544058.1725 | W69: =SUM(W64:W67) -> 771571.4777 | Z69: =SUM(Z64:Z67) -> 824137.0313 | AC69: =SUM(AC64:AC67) -> 816693.2323 | AF69: =SUM(AF64:AF67) -> 806711.3494 | AI69: =SUM(AI64:AI67) -> 795545.035 | AJ69: AJ = AF + AG + AH + AI

Sheet 6. True-up Summary
D4: MIST Meters True-up Model
B9: Sheet 6: MIST Meters Incremental Revenue Requirement
E12: 2016 | G12: 2017 | I12: 2018 | K12: 2019 | M12: 2020 | O12: 2021 | Q12: 2022 | S12: 2023 | U12: 2024 | W12: 2025 | Y12: 2026 | Z12: Total
C14: Deferred and forecasted MIST Meters Revenue Requirement (from Sheet 5) | E14: ='5. MIST Meters_IRR'!E69 -> 72344.27872 | G14: ='5. MIST Meters_IRR'!H69 -> 354981.3336 | I14: ='5. MIST Meters_IRR'!K69 -> 328752.5685 | K14: ='5. MIST Meters_IRR'!N69 -> 289681.898 | M14: ='5. MIST Meters_IRR'!Q69 -> 339072.2167 | O14: ='5. MIST Meters_IRR'!T69 -> 544058.1725 | Q14: ='5. MIST Meters_IRR'!W69 -> 771571.4777 | S14: ='5. MIST Meters_IRR'!Z69 -> 824137.0313 | U14: ='5. MIST Meters_IRR'!AC69 -> 816693.2323 | W14: ='5. MIST Meters_IRR'!AF69 -> 806711.3494 | Y14: ='5. MIST Meters_IRR'!AI69 -> 795545.035 | Z14: =SUM(E14:Y14) -> 5943548.594
C17: MIST Meters Funding Adder Revenues (from Sheet 4) | E17: 0 | G17: 0 | I17: 0 | K17: 0 | M17: 0 | O17: 0 | Q17: 0 | S17: 0 | U17: 0 | W17: 0 | Y17: 0 | Z17: =SUM(E17:Y17) -> 0
C19: MIST Meters Funding Adder Interest (from Sheet 4) | E19: =SUM('4. Fund Adder Revenues'!M19:M27) -> 0 | G19: =SUM('4. Fund Adder Revenues'!M28:M39) -> 0 | I19: =SUM('4. Fund Adder Revenues'!O28:O39) -> 0 | K19: =SUM('4. Fund Adder Revenues'!Q28:Q39) -> 0 | M19: =SUM('4. Fund Adder Revenues'!S28:S39) -> 0 | O19: =SUM('4. Fund Adder Revenues'!U28:U39) -> 0 | Q19: =SUM('4. Fund Adder Revenues'!W28:W39) -> 0 | S19: =SUM('4. Fund Adder Revenues'!Y28:Y39) -> 0 | U19: =SUM('4. Fund Adder Revenues'!AA28:AA39) -> 0 | W19: =SUM('4. Fund Adder Revenues'!AC28:AC39) -> 0 | Y19: =SUM('4. Fund Adder Revenues'!AE28:AE39) -> 0 | Z19: =SUM(E19:Y19) -> 0
C21: Net Deferred Revenue Requirement | E21: =E14-E17-E19 -> 72344.27872 | G21: =G14-G17-G19 -> 354981.3336 | I21: =I14-I17-I19 -> 328752.5685 | K21: =K14-K17-K19 -> 289681.898 | M21: =M14-M17-M19 -> 339072.2167 | O21: =O14-O17-O19 -> 544058.1725 | Q21: =Q14-Q17-Q19 -> 771571.4777 | S21: =S14-S17-S19 -> 824137.0313 | U21: =U14-U17-U19 -> 816693.2323 | W21: =W14-W17-W19 -> 806711.3494 | Y21: =Y14-Y17-Y19 -> 795545.035 | Z21: =SUM(E21:Y21) -> 5943548.594

Sheet Cognos_Office_Connection_Cache (hidden)
